Workbook

Sheet inv_add
E2: شاشة إدخال إذون الإضافة
B5: 5 | C5: التاريخ | D5: رقم الاذن | E5: كود الصنف | F5: اسم الصنف | G5: مخزن الاضافة | H5: الكمية | I5: ملاحظات
A6: =IFERROR(RANK(#REF!,#REF!,1),"") ->  | B6: 1 | C6: 2021-07-08 | D6: 20 | E6: 3927923 | F6: ورقة سوستة خلفى - كينج لونج | G6: رئيسي | H6: 1
A7: =IFERROR(RANK(#REF!,#REF!,1),"") ->  | B7: 2 | C7: 2021-07-08 | D7: 30 | E7: 3927924 | F7: كاوتشة سوستة خلفى - كينج لونج | G7: رئيسي | H7: 1
A8: =IFERROR(RANK(#REF!,#REF!,1),"") ->  | B8: 3 | C8: 2021-07-29 | D8: 3359 | E8: 3927924 | F8: كاوتشة سوستة خلفى - كينج لونج | G8: رئيسي | H8: 2
A9: =IFERROR(RANK(#REF!,#REF!,1),"") ->  | B9: 4 | C9: 2021-07-29 | D9: 3015 | E9: 43202544 | F9: طقم بلي عجل امامي نيسان | G9: رئيسي | H9: 2
A10: =IFERROR(RANK(#REF!,#REF!,1),"") ->  | B10: 5 | C10: 2021-07-29 | D10: 3016 | E10: 3927924 | F10: كاوتشة سوستة خلفى - كينج لونج | G10: رئيسي | H10: 2
A11: =IFERROR(RANK(#REF!,#REF!,1),"") ->  | B11: 6 | C11: 2021-07-29 | D11: 2000 | E11: 3927924 | F11: كاوتشة سوستة خلفى - كينج لونج | G11: رئيسي | H11: 2
A12: =IFERROR(RANK(#REF!,#REF!,1),"") ->  | B12: 7 | C12: 2021-08-01 | D12: 164 | E12: 3927924 | F12: كاوتشة سوستة خلفى - كينج لونج | G12: رئيسي | H12: 1 | I12: العجيبي
A13: =IFERROR(RANK(#REF!,#REF!,1),"") ->  | B13: 8 | C13: 2021-08-01 | D13: 2909 | E13: 3915790 | F13: طقم كاوتش ميزان | G13: رئيسي | H13: 1
A14: =IFERROR(RANK(#REF!,#REF!,1),"") ->  | B14: 9 | C14: 2021-08-02 | D14: 2002 | E14: 3927924 | F14: كاوتشة سوستة خلفى - كينج لونج | G14: رئيسي | H14: 6 | I14: عهدة الشيخ يحي
A15: =IFERROR(RANK(#REF!,#REF!,1),"") ->  | B15: 10
A16: =IFERROR(RANK(#REF!,#REF!,1),"") ->  | B16: 11
A17: =IFERROR(RANK(#REF!,#REF!,1),"") ->  | B17: 12
A18: =IFERROR(RANK(#REF!,#REF!,1),"") ->  | B18: 13
A19: =IFERROR(RANK(#REF!,#REF!,1),"") ->  | B19: 14
A20: =IFERROR(RANK(#REF!,#REF!,1),"") ->  | B20: 15
A21: =IFERROR(RANK(#REF!,#REF!,1),"") ->  | B21: 16
A22: =IFERROR(RANK(#REF!,#REF!,1),"") ->  | B22: 17
A23: =IFERROR(RANK(#REF!,#REF!,1),"") ->  | B23: 18
A24: =IFERROR(RANK(#REF!,#REF!,1),"") ->  | B24: 19
A25: =IFERROR(RANK(#REF!,#REF!,1),"") ->  | B25: 20
A26: =IFERROR(RANK(#REF!,#REF!,1),"") ->  | B26: 21
A27: =IFERROR(RANK(#REF!,#REF!,1),"") ->  | B27: 22
A28: =IFERROR(RANK(#REF!,#REF!,1),"") ->  | B28: 23
A29: =IFERROR(RANK(#REF!,#REF!,1),"") ->  | B29: 24
A30: =IFERROR(RANK(#REF!,#REF!,1),"") ->  | B30: 25
A31: =IFERROR(RANK(#REF!,#REF!,1),"") ->  | B31: 26
A32: =IFERROR(RANK(#REF!,#REF!,1),"") ->  | B32: 27
A33: =IFERROR(RANK(#REF!,#REF!,1),"") ->  | B33: 28
A34: =IFERROR(RANK(#REF!,#REF!,1),"") -> 
A35: =IFERROR(RANK(#REF!,#REF!,1),"") -> 
A36: =IFERROR(RANK(#REF!,#REF!,1),"") -> 
A37: =IFERROR(RANK(#REF!,#REF!,1),"") -> 
A38: =IFERROR(RANK(#REF!,#REF!,1),"") -> 
A39: =IFERROR(RANK(#REF!,#REF!,1),"") -> 
A40: =IFERROR(RANK(#REF!,#REF!,1),"") -> 
A41: =IFERROR(RANK(#REF!,#REF!,1),"") -> 
A42: =IFERROR(RANK(#REF!,#REF!,1),"") -> 
A43: =IFERROR(RANK(#REF!,#REF!,1),"") -> 
A44: =IFERROR(RANK(#REF!,#REF!,1),"") -> 
A45: =IFERROR(RANK(#REF!,#REF!,1),"") ->  | B45: =IF(AND(C45<>"",D45<>""),B44+1,"") -> 
A46: =IFERROR(RANK(#REF!,#REF!,1),"") -> 
A47: =IFERROR(RANK(#REF!,#REF!,1),"") -> 
A48: =IFERROR(RANK(#REF!,#REF!,1),"") -> 
A49: =IFERROR(RANK(#REF!,#REF!,1),"") -> 
A50: =IFERROR(RANK(#REF!,#REF!,1),"") -> 
A51: =IFERROR(RANK(#REF!,#REF!,1),"") -> 
A52: =IFERROR(RANK(#REF!,#REF!,1),"") -> 
A53: =IFERROR(RANK(#REF!,#REF!,1),"") -> 
A54: =IFERROR(RANK(#REF!,#REF!,1),"") -> 
A55: =IFERROR(RANK(#REF!,#REF!,1),"") -> 
A56: =IFERROR(RANK(#REF!,#REF!,1),"") -> 
A57: =IFERROR(RANK(#REF!,#REF!,1),"") -> 
A58: =IFERROR(RANK(#REF!,#REF!,1),"") -> 
A59: =IFERROR(RANK(#REF!,#REF!,1),"") -> 
A60: =IFERROR(RANK(#REF!,#REF!,1),"") -> 
A61: =IFERROR(RANK(#REF!,#REF!,1),"") -> 
A62: =IFERROR(RANK(#REF!,#REF!,1),"") -> 
A63: =IFERROR(RANK(#REF!,#REF!,1),"") -> 
A64: =IFERROR(RANK(#REF!,#REF!,1),"") -> 
A65: =IFERROR(RANK(#REF!,#REF!,1),"") -> 
A66: =IFERROR(RANK(#REF!,#REF!,1),"") -> 
A67: =IFERROR(RANK(#REF!,#REF!,1),"") -> 
A68: =IFERROR(RANK(#REF!,#REF!,1),"") -> 
A69: =IFERROR(RANK(#REF!,#REF!,1),"") -> 
A70: =IFERROR(RANK(#REF!,#REF!,1),"") -> 
A71: =IFERROR(RANK(#REF!,#REF!,1),"") ->  | B71: =IF(AND(C71<>"",D71<>""),B70+1,"") -> 
A72: =IFERROR(RANK(#REF!,#REF!,1),"") -> 
A73: =IFERROR(RANK(#REF!,#REF!,1),"") -> 
A74: =IFERROR(RANK(#REF!,#REF!,1),"") -> 
A75: =IFERROR(RANK(#REF!,#REF!,1),"") -> 
A76: =IFERROR(RANK(#REF!,#REF!,1),"") ->  | E76: =IFERROR(VLOOKUP(D76,OFFSET(cod!$C$6,,,COUNTA(cod!C:C),2),2,0),"") -> 
A77: =IFERROR(RANK(#REF!,#REF!,1),"") ->  | E77: =IFERROR(VLOOKUP(D77,OFFSET(cod!$C$6,,,COUNTA(cod!C:C),2),2,0),"") -> 
A78: =IFERROR(RANK(#REF!,#REF!,1),"") ->  | E78: =IFERROR(VLOOKUP(D78,OFFSET(cod!$C$6,,,COUNTA(cod!C:C),2),2,0),"") -> 
A79: =IFERROR(RANK(#REF!,#REF!,1),"") ->  | E79: =IFERROR(VLOOKUP(D79,OFFSET(cod!$C$6,,,COUNTA(cod!C:C),2),2,0),"") -> 
A80: =IFERROR(RANK(#REF!,#REF!,1),"") ->  | E80: =IFERROR(VLOOKUP(D80,OFFSET(cod!$C$6,,,COUNTA(cod!C:C),2),2,0),"") -> 
A81: =IFERROR(RANK(#REF!,#REF!,1),"") ->  | E81: =IFERROR(VLOOKUP(D81,OFFSET(cod!$C$6,,,COUNTA(cod!C:C),2),2,0),"") -> 
A82: =IFERROR(RANK(#REF!,#REF!,1),"") ->  | E82: =IFERROR(VLOOKUP(D82,OFFSET(cod!$C$6,,,COUNTA(cod!C:C),2),2,0),"") -> 
A83: =IFERROR(RANK(#REF!,#REF!,1),"") ->  | E83: =IFERROR(VLOOKUP(D83,OFFSET(cod!$C$6,,,COUNTA(cod!C:C),2),2,0),"") -> 
A84: =IFERROR(RANK(#REF!,#REF!,1),"") ->  | E84: =IFERROR(VLOOKUP(D84,OFFSET(cod!$C$6,,,COUNTA(cod!C:C),2),2,0),"") -> 
A85: =IFERROR(RANK(#REF!,#REF!,1),"") ->  | E85: =IFERROR(VLOOKUP(D85,OFFSET(cod!$C$6,,,COUNTA(cod!C:C),2),2,0),"") -> 
A86: =IFERROR(RANK(#REF!,#REF!,1),"") ->  | E86: =IFERROR(VLOOKUP(D86,OFFSET(cod!$C$6,,,COUNTA(cod!C:C),2),2,0),"") -> 
A87: =IFERROR(RANK(#REF!,#REF!,1),"") ->  | E87: =IFERROR(VLOOKUP(D87,OFFSET(cod!$C$6,,,COUNTA(cod!C:C),2),2,0),"") -> 
A88: =IFERROR(RANK(#REF!,#REF!,1),"") ->  | E88: =IFERROR(VLOOKUP(D88,OFFSET(cod!$C$6,,,COUNTA(cod!C:C),2),2,0),"") -> 
A89: =IFERROR(RANK(#REF!,#REF!,1),"") ->  | E89: =IFERROR(VLOOKUP(D89,OFFSET(cod!$C$6,,,COUNTA(cod!C:C),2),2,0),"") -> 
A90: =IFERROR(RANK(#REF!,#REF!,1),"") ->  | E90: =IFERROR(VLOOKUP(D90,OFFSET(cod!$C$6,,,COUNTA(cod!C:C),2),2,0),"") -> 
A91: =IFERROR(RANK(#REF!,#REF!,1),"") ->  | E91: =IFERROR(VLOOKUP(D91,OFFSET(cod!$C$6,,,COUNTA(cod!C:C),2),2,0),"") -> 
A92: =IFERROR(RANK(#REF!,#REF!,1),"") ->  | E92: =IFERROR(VLOOKUP(D92,OFFSET(cod!$C$6,,,COUNTA(cod!C:C),2),2,0),"") -> 
A93: =IFERROR(RANK(#REF!,#REF!,1),"") ->  | E93: =IFERROR(VLOOKUP(D93,OFFSET(cod!$C$6,,,COUNTA(cod!C:C),2),2,0),"") -> 
A94: =IFERROR(RANK(#REF!,#REF!,1),"") ->  | E94: =IFERROR(VLOOKUP(D94,OFFSET(cod!$C$6,,,COUNTA(cod!C:C),2),2,0),"") -> 
A95: =IFERROR(RANK(#REF!,#REF!,1),"") ->  | E95: =IFERROR(VLOOKUP(D95,OFFSET(cod!$C$6,,,COUNTA(cod!C:C),2),2,0),"") -> 
A96: =IFERROR(RANK(#REF!,#REF!,1),"") ->  | E96: =IFERROR(VLOOKUP(D96,OFFSET(cod!$C$6,,,COUNTA(cod!C:C),2),2,0),"") -> 
A97: =IFERROR(RANK(#REF!,#REF!,1),"") ->  | E97: =IFERROR(VLOOKUP(D97,OFFSET(cod!$C$6,,,COUNTA(cod!C:C),2),2,0),"") -> 
A98: =IFERROR(RANK(#REF!,#REF!,1),"") ->  | E98: =IFERROR(VLOOKUP(D98,OFFSET(cod!$C$6,,,COUNTA(cod!C:C),2),2,0),"") -> 
A99: =IFERROR(RANK(#REF!,#REF!,1),"") ->  | E99: =IFERROR(VLOOKUP(D99,OFFSET(cod!$C$6,,,COUNTA(cod!C:C),2),2,0),"") -> 
A100: =IFERROR(RANK(#REF!,#REF!,1),"") ->  | E100: =IFERROR(VLOOKUP(D100,OFFSET(cod!$C$6,,,COUNTA(cod!C:C),2),2,0),"") -> 
A101: =IFERROR(RANK(#REF!,#REF!,1),"") ->  | E101: =IFERROR(VLOOKUP(D101,OFFSET(cod!$C$6,,,COUNTA(cod!C:C),2),2,0),"") -> 
A102: =IFERROR(RANK(#REF!,#REF!,1),"") ->  | E102: =IFERROR(VLOOKUP(D102,OFFSET(cod!$C$6,,,COUNTA(cod!C:C),2),2,0),"") -> 
A103: =IFERROR(RANK(#REF!,#REF!,1),"") ->  | E103: =IFERROR(VLOOKUP(D103,OFFSET(cod!$C$6,,,COUNTA(cod!C:C),2),2,0),"") -> 
A104: =IFERROR(RANK(#REF!,#REF!,1),"") ->  | E104: =IFERROR(VLOOKUP(D104,OFFSET(cod!$C$6,,,COUNTA(cod!C:C),2),2,0),"") -> 
A105: =IFERROR(RANK(#REF!,#REF!,1),"") ->  | E105: =IFERROR(VLOOKUP(D105,OFFSET(cod!$C$6,,,COUNTA(cod!C:C),2),2,0),"") -> 
A106: =IFERROR(RANK(#REF!,#REF!,1),"") ->  | E106: =IFERROR(VLOOKUP(D106,OFFSET(cod!$C$6,,,COUNTA(cod!C:C),2),2,0),"") -> 
A107: =IFERROR(RANK(#REF!,#REF!,1),"") ->  | E107: =IFERROR(VLOOKUP(D107,OFFSET(cod!$C$6,,,COUNTA(cod!C:C),2),2,0),"") -> 
A108: =IFERROR(RANK(#REF!,#REF!,1),"") ->  | E108: =IFERROR(VLOOKUP(D108,OFFSET(cod!$C$6,,,COUNTA(cod!C:C),2),2,0),"") -> 
A109: =IFERROR(RANK(#REF!,#REF!,1),"") ->  | E109: =IFERROR(VLOOKUP(D109,OFFSET(cod!$C$6,,,COUNTA(cod!C:C),2),2,0),"") -> 
A110: =IFERROR(RANK(#REF!,#REF!,1),"") ->  | E110: =IFERROR(VLOOKUP(D110,OFFSET(cod!$C$6,,,COUNTA(cod!C:C),2),2,0),"") -> 
A111: =IFERROR(RANK(#REF!,#REF!,1),"") ->  | E111: =IFERROR(VLOOKUP(D111,OFFSET(cod!$C$6,,,COUNTA(cod!C:C),2),2,0),"") -> 
A112: =IFERROR(RANK(#REF!,#REF!,1),"") ->  | E112: =IFERROR(VLOOKUP(D112,OFFSET(cod!$C$6,,,COUNTA(cod!C:C),2),2,0),"") -> 
A113: =IFERROR(RANK(#REF!,#REF!,1),"") ->  | E113: =IFERROR(VLOOKUP(D113,OFFSET(cod!$C$6,,,COUNTA(cod!C:C),2),2,0),"") -> 
A114: =IFERROR(RANK(#REF!,#REF!,1),"") ->  | E114: =IFERROR(VLOOKUP(D114,OFFSET(cod!$C$6,,,COUNTA(cod!C:C),2),2,0),"") -> 
A115: =IFERROR(RANK(#REF!,#REF!,1),"") ->  | E115: =IFERROR(VLOOKUP(D115,OFFSET(cod!$C$6,,,COUNTA(cod!C:C),2),2,0),"") -> 
A116: =IFERROR(RANK(#REF!,#REF!,1),"") ->  | E116: =IFERROR(VLOOKUP(D116,OFFSET(cod!$C$6,,,COUNTA(cod!C:C),2),2,0),"") -> 
A117: =IFERROR(RANK(#REF!,#REF!,1),"") ->  | E117: =IFERROR(VLOOKUP(D117,OFFSET(cod!$C$6,,,COUNTA(cod!C:C),2),2,0),"") -> 
A118: =IFERROR(RANK(#REF!,#REF!,1),"") ->  | E118: =IFERROR(VLOOKUP(D118,OFFSET(cod!$C$6,,,COUNTA(cod!C:C),2),2,0),"") -> 
A119: =IFERROR(RANK(#REF!,#REF!,1),"") ->  | E119: =IFERROR(VLOOKUP(D119,OFFSET(cod!$C$6,,,COUNTA(cod!C:C),2),2,0),"") -> 
A120: =IFERROR(RANK(#REF!,#REF!,1),"") ->  | E120: =IFERROR(VLOOKUP(D120,OFFSET(cod!$C$6,,,COUNTA(cod!C:C),2),2,0),"") -> 
A121: =IFERROR(RANK(#REF!,#REF!,1),"") ->  | E121: =IFERROR(VLOOKUP(D121,OFFSET(cod!$C$6,,,COUNTA(cod!C:C),2),2,0),"") -> 
A122: =IFERROR(RANK(#REF!,#REF!,1),"") ->  | E122: =IFERROR(VLOOKUP(D122,OFFSET(cod!$C$6,,,COUNTA(cod!C:C),2),2,0),"") -> 
A123: =IFERROR(RANK(#REF!,#REF!,1),"") ->  | E123: =IFERROR(VLOOKUP(D123,OFFSET(cod!$C$6,,,COUNTA(cod!C:C),2),2,0),"") -> 
A124: =IFERROR(RANK(#REF!,#REF!,1),"") ->  | E124: =IFERROR(VLOOKUP(D124,OFFSET(cod!$C$6,,,COUNTA(cod!C:C),2),2,0),"") -> 
A125: =IFERROR(RANK(#REF!,#REF!,1),"") ->  | E125: =IFERROR(VLOOKUP(D125,OFFSET(cod!$C$6,,,COUNTA(cod!C:C),2),2,0),"") -> 
A126: =IFERROR(RANK(#REF!,#REF!,1),"") ->  | E126: =IFERROR(VLOOKUP(D126,OFFSET(cod!$C$6,,,COUNTA(cod!C:C),2),2,0),"") -> 
A127: =IFERROR(RANK(#REF!,#REF!,1),"") ->  | E127: =IFERROR(VLOOKUP(D127,OFFSET(cod!$C$6,,,COUNTA(cod!C:C),2),2,0),"") -> 
A128: =IFERROR(RANK(#REF!,#REF!,1),"") ->  | E128: =IFERROR(VLOOKUP(D128,OFFSET(cod!$C$6,,,COUNTA(cod!C:C),2),2,0),"") -> 
A129: =IFERROR(RANK(#REF!,#REF!,1),"") ->  | E129: =IFERROR(VLOOKUP(D129,OFFSET(cod!$C$6,,,COUNTA(cod!C:C),2),2,0),"") -> 
A130: =IFERROR(RANK(#REF!,#REF!,1),"") ->  | E130: =IFERROR(VLOOKUP(D130,OFFSET(cod!$C$6,,,COUNTA(cod!C:C),2),2,0),"") -> 
A131: =IFERROR(RANK(#REF!,#REF!,1),"") ->  | E131: =IFERROR(VLOOKUP(D131,OFFSET(cod!$C$6,,,COUNTA(cod!C:C),2),2,0),"") -> 
A132: =IFERROR(RANK(#REF!,#REF!,1),"") ->  | E132: =IFERROR(VLOOKUP(D132,OFFSET(cod!$C$6,,,COUNTA(cod!C:C),2),2,0),"") -> 
A133: =IFERROR(RANK(#REF!,#REF!,1),"") ->  | E133: =IFERROR(VLOOKUP(D133,OFFSET(cod!$C$6,,,COUNTA(cod!C:C),2),2,0),"") -> 
A134: =IFERROR(RANK(#REF!,#REF!,1),"") ->  | E134: =IFERROR(VLOOKUP(D134,OFFSET(cod!$C$6,,,COUNTA(cod!C:C),2),2,0),"") -> 
A135: =IFERROR(RANK(#REF!,#REF!,1),"") ->  | B135: =IF(AND(C135<>"",D135<>""),B134+1,"") ->  | E135: =IFERROR(VLOOKUP(D135,OFFSET(cod!$C$6,,,COUNTA(cod!C:C),2),2,0),"") -> 
A136: =IFERROR(RANK(#REF!,#REF!,1),"") ->  | E136: =IFERROR(VLOOKUP(D136,OFFSET(cod!$C$6,,,COUNTA(cod!C:C),2),2,0),"") -> 
A137: =IFERROR(RANK(#REF!,#REF!,1),"") ->  | E137: =IFERROR(VLOOKUP(D137,OFFSET(cod!$C$6,,,COUNTA(cod!C:C),2),2,0),"") -> 
A138: =IFERROR(RANK(#REF!,#REF!,1),"") ->  | E138: =IFERROR(VLOOKUP(D138,OFFSET(cod!$C$6,,,COUNTA(cod!C:C),2),2,0),"") -> 
A139: =IFERROR(RANK(#REF!,#REF!,1),"") ->  | E139: =IFERROR(VLOOKUP(D139,OFFSET(cod!$C$6,,,COUNTA(cod!C:C),2),2,0),"") -> 
A140: =IFERROR(RANK(#REF!,#REF!,1),"") ->  | E140: =IFERROR(VLOOKUP(D140,OFFSET(cod!$C$6,,,COUNTA(cod!C:C),2),2,0),"") -> 
A141: =IFERROR(RANK(#REF!,#REF!,1),"") ->  | E141: =IFERROR(VLOOKUP(D141,OFFSET(cod!$C$6,,,COUNTA(cod!C:C),2),2,0),"") -> 
A142: =IFERROR(RANK(#REF!,#REF!,1),"") ->  | E142: =IFERROR(VLOOKUP(D142,OFFSET(cod!$C$6,,,COUNTA(cod!C:C),2),2,0),"") -> 
A143: =IFERROR(RANK(#REF!,#REF!,1),"") ->  | E143: =IFERROR(VLOOKUP(D143,OFFSET(cod!$C$6,,,COUNTA(cod!C:C),2),2,0),"") -> 
A144: =IFERROR(RANK(#REF!,#REF!,1),"") ->  | E144: =IFERROR(VLOOKUP(D144,OFFSET(cod!$C$6,,,COUNTA(cod!C:C),2),2,0),"") -> 
A145: =IFERROR(RANK(#REF!,#REF!,1),"") ->  | E145: =IFERROR(VLOOKUP(D145,OFFSET(cod!$C$6,,,COUNTA(cod!C:C),2),2,0),"") -> 
A146: =IFERROR(RANK(#REF!,#REF!,1),"") ->  | E146: =IFERROR(VLOOKUP(D146,OFFSET(cod!$C$6,,,COUNTA(cod!C:C),2),2,0),"") -> 
A147: =IFERROR(RANK(#REF!,#REF!,1),"") ->  | E147: =IFERROR(VLOOKUP(D147,OFFSET(cod!$C$6,,,COUNTA(cod!C:C),2),2,0),"") -> 
A148: =IFERROR(RANK(#REF!,#REF!,1),"") ->  | E148: =IFERROR(VLOOKUP(D148,OFFSET(cod!$C$6,,,COUNTA(cod!C:C),2),2,0),"") -> 
A149: =IFERROR(RANK(#REF!,#REF!,1),"") ->  | E149: =IFERROR(VLOOKUP(D149,OFFSET(cod!$C$6,,,COUNTA(cod!C:C),2),2,0),"") -> 
A150: =IFERROR(RANK(#REF!,#REF!,1),"") ->  | E150: =IFERROR(VLOOKUP(D150,OFFSET(cod!$C$6,,,COUNTA(cod!C:C),2),2,0),"") -> 
A151: =IFERROR(RANK(#REF!,#REF!,1),"") ->  | E151: =IFERROR(VLOOKUP(D151,OFFSET(cod!$C$6,,,COUNTA(cod!C:C),2),2,0),"") -> 
A152: =IFERROR(RANK(#REF!,#REF!,1),"") ->  | E152: =IFERROR(VLOOKUP(D152,OFFSET(cod!$C$6,,,COUNTA(cod!C:C),2),2,0),"") -> 
A153: =IFERROR(RANK(#REF!,#REF!,1),"") ->  | E153: =IFERROR(VLOOKUP(D153,OFFSET(cod!$C$6,,,COUNTA(cod!C:C),2),2,0),"") -> 
A154: =IFERROR(RANK(#REF!,#REF!,1),"") ->  | E154: =IFERROR(VLOOKUP(D154,OFFSET(cod!$C$6,,,COUNTA(cod!C:C),2),2,0),"") -> 
A155: =IFERROR(RANK(#REF!,#REF!,1),"") ->  | E155: =IFERROR(VLOOKUP(D155,OFFSET(cod!$C$6,,,COUNTA(cod!C:C),2),2,0),"") -> 
A156: =IFERROR(RANK(#REF!,#REF!,1),"") ->  | E156: =IFERROR(VLOOKUP(D156,OFFSET(cod!$C$6,,,COUNTA(cod!C:C),2),2,0),"") -> 
A157: =IFERROR(RANK(#REF!,#REF!,1),"") ->  | E157: =IFERROR(VLOOKUP(D157,OFFSET(cod!$C$6,,,COUNTA(cod!C:C),2),2,0),"") -> 
A158: =IFERROR(RANK(#REF!,#REF!,1),"") ->  | E158: =IFERROR(VLOOKUP(D158,OFFSET(cod!$C$6,,,COUNTA(cod!C:C),2),2,0),"") -> 
A159: =IFERROR(RANK(#REF!,#REF!,1),"") ->  | E159: =IFERROR(VLOOKUP(D159,OFFSET(cod!$C$6,,,COUNTA(cod!C:C),2),2,0),"") -> 
A160: =IFERROR(RANK(#REF!,#REF!,1),"") ->  | E160: =IFERROR(VLOOKUP(D160,OFFSET(cod!$C$6,,,COUNTA(cod!C:C),2),2,0),"") -> 
A161: =IFERROR(RANK(#REF!,#REF!,1),"") ->  | E161: =IFERROR(VLOOKUP(D161,OFFSET(cod!$C$6,,,COUNTA(cod!C:C),2),2,0),"") -> 
A162: =IFERROR(RANK(#REF!,#REF!,1),"") ->  | E162: =IFERROR(VLOOKUP(D162,OFFSET(cod!$C$6,,,COUNTA(cod!C:C),2),2,0),"") -> 
A163: =IFERROR(RANK(#REF!,#REF!,1),"") ->  | E163: =IFERROR(VLOOKUP(D163,OFFSET(cod!$C$6,,,COUNTA(cod!C:C),2),2,0),"") -> 
A164: =IFERROR(RANK(#REF!,#REF!,1),"") ->  | E164: =IFERROR(VLOOKUP(D164,OFFSET(cod!$C$6,,,COUNTA(cod!C:C),2),2,0),"") -> 
A165: =IFERROR(RANK(#REF!,#REF!,1),"") ->  | E165: =IFERROR(VLOOKUP(D165,OFFSET(cod!$C$6,,,COUNTA(cod!C:C),2),2,0),"") -> 
A166: =IFERROR(RANK(#REF!,#REF!,1),"") ->  | E166: =IFERROR(VLOOKUP(D166,OFFSET(cod!$C$6,,,COUNTA(cod!C:C),2),2,0),"") -> 
A167: =IFERROR(RANK(#REF!,#REF!,1),"") ->  | E167: =IFERROR(VLOOKUP(D167,OFFSET(cod!$C$6,,,COUNTA(cod!C:C),2),2,0),"") -> 
A168: =IFERROR(RANK(#REF!,#REF!,1),"") ->  | E168: =IFERROR(VLOOKUP(D168,OFFSET(cod!$C$6,,,COUNTA(cod!C:C),2),2,0),"") -> 
A169: =IFERROR(RANK(#REF!,#REF!,1),"") ->  | E169: =IFERROR(VLOOKUP(D169,OFFSET(cod!$C$6,,,COUNTA(cod!C:C),2),2,0),"") -> 
A170: =IFERROR(RANK(#REF!,#REF!,1),"") ->  | E170: =IFERROR(VLOOKUP(D170,OFFSET(cod!$C$6,,,COUNTA(cod!C:C),2),2,0),"") -> 
A171: =IFERROR(RANK(#REF!,#REF!,1),"") ->  | E171: =IFERROR(VLOOKUP(D171,OFFSET(cod!$C$6,,,COUNTA(cod!C:C),2),2,0),"") -> 
A172: =IFERROR(RANK(#REF!,#REF!,1),"") ->  | E172: =IFERROR(VLOOKUP(D172,OFFSET(cod!$C$6,,,COUNTA(cod!C:C),2),2,0),"") -> 
A173: =IFERROR(RANK(#REF!,#REF!,1),"") ->  | E173: =IFERROR(VLOOKUP(D173,OFFSET(cod!$C$6,,,COUNTA(cod!C:C),2),2,0),"") -> 
A174: =IFERROR(RANK(#REF!,#REF!,1),"") ->  | E174: =IFERROR(VLOOKUP(D174,OFFSET(cod!$C$6,,,COUNTA(cod!C:C),2),2,0),"") -> 
A175: =IFERROR(RANK(#REF!,#REF!,1),"") ->  | E175: =IFERROR(VLOOKUP(D175,OFFSET(cod!$C$6,,,COUNTA(cod!C:C),2),2,0),"") -> 
A176: =IFERROR(RANK(#REF!,#REF!,1),"") ->  | E176: =IFERROR(VLOOKUP(D176,OFFSET(cod!$C$6,,,COUNTA(cod!C:C),2),2,0),"") -> 
A177: =IFERROR(RANK(#REF!,#REF!,1),"") ->  | E177: =IFERROR(VLOOKUP(D177,OFFSET(cod!$C$6,,,COUNTA(cod!C:C),2),2,0),"") -> 
A178: =IFERROR(RANK(#REF!,#REF!,1),"") ->  | E178: =IFERROR(VLOOKUP(D178,OFFSET(cod!$C$6,,,COUNTA(cod!C:C),2),2,0),"") -> 
A179: =IFERROR(RANK(#REF!,#REF!,1),"") ->  | E179: =IFERROR(VLOOKUP(D179,OFFSET(cod!$C$6,,,COUNTA(cod!C:C),2),2,0),"") -> 
A180: =IFERROR(RANK(#REF!,#REF!,1),"") ->  | E180: =IFERROR(VLOOKUP(D180,OFFSET(cod!$C$6,,,COUNTA(cod!C:C),2),2,0),"") -> 
A181: =IFERROR(RANK(#REF!,#REF!,1),"") ->  | E181: =IFERROR(VLOOKUP(D181,OFFSET(cod!$C$6,,,COUNTA(cod!C:C),2),2,0),"") -> 
A182: =IFERROR(RANK(#REF!,#REF!,1),"") ->  | E182: =IFERROR(VLOOKUP(D182,OFFSET(cod!$C$6,,,COUNTA(cod!C:C),2),2,0),"") -> 
A183: =IFERROR(RANK(#REF!,#REF!,1),"") ->  | E183: =IFERROR(VLOOKUP(D183,OFFSET(cod!$C$6,,,COUNTA(cod!C:C),2),2,0),"") -> 
A184: =IFERROR(RANK(#REF!,#REF!,1),"") ->  | E184: =IFERROR(VLOOKUP(D184,OFFSET(cod!$C$6,,,COUNTA(cod!C:C),2),2,0),"") -> 
A185: =IFERROR(RANK(#REF!,#REF!,1),"") ->  | E185: =IFERROR(VLOOKUP(D185,OFFSET(cod!$C$6,,,COUNTA(cod!C:C),2),2,0),"") -> 
A186: =IFERROR(RANK(#REF!,#REF!,1),"") ->  | E186: =IFERROR(VLOOKUP(D186,OFFSET(cod!$C$6,,,COUNTA(cod!C:C),2),2,0),"") -> 
A187: =IFERROR(RANK(#REF!,#REF!,1),"") ->  | E187: =IFERROR(VLOOKUP(D187,OFFSET(cod!$C$6,,,COUNTA(cod!C:C),2),2,0),"") -> 
A188: =IFERROR(RANK(#REF!,#REF!,1),"") ->  | E188: =IFERROR(VLOOKUP(D188,OFFSET(cod!$C$6,,,COUNTA(cod!C:C),2),2,0),"") -> 
A189: =IFERROR(RANK(#REF!,#REF!,1),"") ->  | E189: =IFERROR(VLOOKUP(D189,OFFSET(cod!$C$6,,,COUNTA(cod!C:C),2),2,0),"") -> 
A190: =IFERROR(RANK(#REF!,#REF!,1),"") ->  | E190: =IFERROR(VLOOKUP(D190,OFFSET(cod!$C$6,,,COUNTA(cod!C:C),2),2,0),"") -> 
A191: =IFERROR(RANK(#REF!,#REF!,1),"") ->  | E191: =IFERROR(VLOOKUP(D191,OFFSET(cod!$C$6,,,COUNTA(cod!C:C),2),2,0),"") -> 
A192: =IFERROR(RANK(#REF!,#REF!,1),"") ->  | E192: =IFERROR(VLOOKUP(D192,OFFSET(cod!$C$6,,,COUNTA(cod!C:C),2),2,0),"") -> 
A193: =IFERROR(RANK(#REF!,#REF!,1),"") ->  | E193: =IFERROR(VLOOKUP(D193,OFFSET(cod!$C$6,,,COUNTA(cod!C:C),2),2,0),"") -> 
A194: =IFERROR(RANK(#REF!,#REF!,1),"") ->  | E194: =IFERROR(VLOOKUP(D194,OFFSET(cod!$C$6,,,COUNTA(cod!C:C),2),2,0),"") -> 
A195: =IFERROR(RANK(#REF!,#REF!,1),"") ->  | E195: =IFERROR(VLOOKUP(D195,OFFSET(cod!$C$6,,,COUNTA(cod!C:C),2),2,0),"") -> 
A196: =IFERROR(RANK(#REF!,#REF!,1),"") ->  | E196: =IFERROR(VLOOKUP(D196,OFFSET(cod!$C$6,,,COUNTA(cod!C:C),2),2,0),"") -> 
A197: =IFERROR(RANK(#REF!,#REF!,1),"") ->  | E197: =IFERROR(VLOOKUP(D197,OFFSET(cod!$C$6,,,COUNTA(cod!C:C),2),2,0),"") -> 
A198: =IFERROR(RANK(#REF!,#REF!,1),"") ->  | E198: =IFERROR(VLOOKUP(D198,OFFSET(cod!$C$6,,,COUNTA(cod!C:C),2),2,0),"") -> 
A199: =IFERROR(RANK(#REF!,#REF!,1),"") ->  | B199: =IF(AND(C199<>"",D199<>""),B198+1,"") ->  | E199: =IFERROR(VLOOKUP(D199,OFFSET(cod!$C$6,,,COUNTA(cod!C:C),2),2,0),"") -> 
A200: =IFERROR(RANK(#REF!,#REF!,1),"") ->  | E200: =IFERROR(VLOOKUP(D200,OFFSET(cod!$C$6,,,COUNTA(cod!C:C),2),2,0),"") -> 
A201: =IFERROR(RANK(#REF!,#REF!,1),"") ->  | E201: =IFERROR(VLOOKUP(D201,OFFSET(cod!$C$6,,,COUNTA(cod!C:C),2),2,0),"") -> 
A202: =IFERROR(RANK(#REF!,#REF!,1),"") ->  | E202: =IFERROR(VLOOKUP(D202,OFFSET(cod!$C$6,,,COUNTA(cod!C:C),2),2,0),"") -> 
A203: =IFERROR(RANK(#REF!,#REF!,1),"") ->  | E203: =IFERROR(VLOOKUP(D203,OFFSET(cod!$C$6,,,COUNTA(cod!C:C),2),2,0),"") -> 
... 347 more rows

Sheet inv_out
E2: شاشة صرف الصنف
B5: م | C5: التاريخ | D5: رقم الاذن | E5: كود الصنف | F5: اسم الصنف | G5: جهة الصرف | H5: الكمية | I5: ملاحظات
A6: =IFERROR(RANK(#REF!,#REF!,1),"") ->  | B6: 1 | C6: 2021-07-29 | D6: 252 | E6: 3927923 | F6: ورقة سوستة خلفى - كينج لونج | G6: رئيسي | H6: 1
A7: =IFERROR(RANK(#REF!,#REF!,1),"") ->  | B7: 2 | C7: 2021-07-29 | D7: 25 | E7: 3927924 | F7: كاوتشة سوستة خلفى - كينج لونج | G7: رئيسي | H7: 1
A8: =IFERROR(RANK(#REF!,#REF!,1),"") ->  | B8: 3 | C8: 2021-07-29 | D8: 3360 | E8: 3927924 | F8: كاوتشة سوستة خلفى - كينج لونج | G8: رئيسي | H8: 1
A9: =IFERROR(RANK(#REF!,#REF!,1),"") ->  | B9: 4
A10: =IFERROR(RANK(#REF!,#REF!,1),"") ->  | B10: 5
A11: =IFERROR(RANK(#REF!,#REF!,1),"") ->  | B11: 6
A12: =IFERROR(RANK(#REF!,#REF!,1),"") ->  | B12: 7
A13: =IFERROR(RANK(#REF!,#REF!,1),"") ->  | B13: 8
A14: =IFERROR(RANK(#REF!,#REF!,1),"") ->  | B14: 9
A15: =IFERROR(RANK(#REF!,#REF!,1),"") ->  | B15: 10
A16: =IFERROR(RANK(#REF!,#REF!,1),"") ->  | B16: 11
A17: =IFERROR(RANK(#REF!,#REF!,1),"") ->  | B17: 12
A18: =IFERROR(RANK(#REF!,#REF!,1),"") ->  | B18: 13
A19: =IFERROR(RANK(#REF!,#REF!,1),"") ->  | B19: 14
A20: =IFERROR(RANK(#REF!,#REF!,1),"") ->  | B20: 15
A21: =IFERROR(RANK(#REF!,#REF!,1),"") ->  | B21: 16
A22: =IFERROR(RANK(#REF!,#REF!,1),"") ->  | B22: 17
A23: =IFERROR(RANK(#REF!,#REF!,1),"") ->  | B23: 18
A24: =IFERROR(RANK(#REF!,#REF!,1),"") ->  | B24: 19
A25: =IFERROR(RANK(#REF!,#REF!,1),"") ->  | B25: 20
A26: =IFERROR(RANK(#REF!,#REF!,1),"") ->  | B26: 21
A27: =IFERROR(RANK(#REF!,#REF!,1),"") ->  | B27: 22
A28: =IFERROR(RANK(#REF!,#REF!,1),"") -> 
A29: =IFERROR(RANK(#REF!,#REF!,1),"") -> 
A30: =IFERROR(RANK(#REF!,#REF!,1),"") -> 
A31: =IFERROR(RANK(#REF!,#REF!,1),"") -> 
A32: =IFERROR(RANK(#REF!,#REF!,1),"") -> 
A33: =IFERROR(RANK(#REF!,#REF!,1),"") -> 
A34: =IFERROR(RANK(#REF!,#REF!,1),"") -> 
A35: =IFERROR(RANK(#REF!,#REF!,1),"") -> 
A36: =IFERROR(RANK(#REF!,#REF!,1),"") -> 
A37: =IFERROR(RANK(#REF!,#REF!,1),"") -> 
A38: =IFERROR(RANK(#REF!,#REF!,1),"") -> 
A39: =IFERROR(RANK(#REF!,#REF!,1),"") ->  | B39: =IF(AND(C39<>"",D39<>""),B38+1,"") -> 
A40: =IFERROR(RANK(#REF!,#REF!,1),"") -> 
A41: =IFERROR(RANK(#REF!,#REF!,1),"") -> 
A42: =IFERROR(RANK(#REF!,#REF!,1),"") -> 
A43: =IFERROR(RANK(#REF!,#REF!,1),"") -> 
A44: =IFERROR(RANK(#REF!,#REF!,1),"") -> 
A45: =IFERROR(RANK(#REF!,#REF!,1),"") -> 
A46: =IFERROR(RANK(#REF!,#REF!,1),"") -> 
A47: =IFERROR(RANK(#REF!,#REF!,1),"") -> 
A48: =IFERROR(RANK(#REF!,#REF!,1),"") -> 
A49: =IFERROR(RANK(#REF!,#REF!,1),"") -> 
A50: =IFERROR(RANK(#REF!,#REF!,1),"") -> 
A51: =IFERROR(RANK(#REF!,#REF!,1),"") -> 
A52: =IFERROR(RANK(#REF!,#REF!,1),"") -> 
A53: =IFERROR(RANK(#REF!,#REF!,1),"") -> 
A54: =IFERROR(RANK(#REF!,#REF!,1),"") -> 
A55: =IFERROR(RANK(#REF!,#REF!,1),"") -> 
A56: =IFERROR(RANK(#REF!,#REF!,1),"") -> 
A57: =IFERROR(RANK(#REF!,#REF!,1),"") -> 
A58: =IFERROR(RANK(#REF!,#REF!,1),"") -> 
A59: =IFERROR(RANK(#REF!,#REF!,1),"") -> 
A60: =IFERROR(RANK(#REF!,#REF!,1),"") -> 
A61: =IFERROR(RANK(#REF!,#REF!,1),"") -> 
A62: =IFERROR(RANK(#REF!,#REF!,1),"") -> 
A63: =IFERROR(RANK(#REF!,#REF!,1),"") -> 
A64: =IFERROR(RANK(#REF!,#REF!,1),"") -> 
A65: =IFERROR(RANK(#REF!,#REF!,1),"") -> 
A66: =IFERROR(RANK(#REF!,#REF!,1),"") -> 
A67: =IFERROR(RANK(#REF!,#REF!,1),"") -> 
A68: =IFERROR(RANK(#REF!,#REF!,1),"") -> 
A69: =IFERROR(RANK(#REF!,#REF!,1),"") -> 
A70: =IFERROR(RANK(#REF!,#REF!,1),"") -> 
A71: =IFERROR(RANK(#REF!,#REF!,1),"") ->  | B71: =IF(AND(C71<>"",D71<>""),B70+1,"") -> 
A72: =IFERROR(RANK(#REF!,#REF!,1),"") -> 
A73: =IFERROR(RANK(#REF!,#REF!,1),"") -> 
A74: =IFERROR(RANK(#REF!,#REF!,1),"") -> 
A75: =IFERROR(RANK(#REF!,#REF!,1),"") -> 
A76: =IFERROR(RANK(#REF!,#REF!,1),"") ->  | E76: =IFERROR(VLOOKUP(D76,OFFSET(cod!$C$6,,,COUNTA(cod!C:C),2),2,0),"") -> 
A77: =IFERROR(RANK(#REF!,#REF!,1),"") ->  | E77: =IFERROR(VLOOKUP(D77,OFFSET(cod!$C$6,,,COUNTA(cod!C:C),2),2,0),"") -> 
A78: =IFERROR(RANK(#REF!,#REF!,1),"") ->  | E78: =IFERROR(VLOOKUP(D78,OFFSET(cod!$C$6,,,COUNTA(cod!C:C),2),2,0),"") -> 
A79: =IFERROR(RANK(#REF!,#REF!,1),"") ->  | E79: =IFERROR(VLOOKUP(D79,OFFSET(cod!$C$6,,,COUNTA(cod!C:C),2),2,0),"") -> 
A80: =IFERROR(RANK(#REF!,#REF!,1),"") ->  | E80: =IFERROR(VLOOKUP(D80,OFFSET(cod!$C$6,,,COUNTA(cod!C:C),2),2,0),"") -> 
A81: =IFERROR(RANK(#REF!,#REF!,1),"") ->  | E81: =IFERROR(VLOOKUP(D81,OFFSET(cod!$C$6,,,COUNTA(cod!C:C),2),2,0),"") -> 
A82: =IFERROR(RANK(#REF!,#REF!,1),"") ->  | E82: =IFERROR(VLOOKUP(D82,OFFSET(cod!$C$6,,,COUNTA(cod!C:C),2),2,0),"") -> 
A83: =IFERROR(RANK(#REF!,#REF!,1),"") ->  | E83: =IFERROR(VLOOKUP(D83,OFFSET(cod!$C$6,,,COUNTA(cod!C:C),2),2,0),"") -> 
A84: =IFERROR(RANK(#REF!,#REF!,1),"") ->  | E84: =IFERROR(VLOOKUP(D84,OFFSET(cod!$C$6,,,COUNTA(cod!C:C),2),2,0),"") -> 
A85: =IFERROR(RANK(#REF!,#REF!,1),"") ->  | E85: =IFERROR(VLOOKUP(D85,OFFSET(cod!$C$6,,,COUNTA(cod!C:C),2),2,0),"") -> 
A86: =IFERROR(RANK(#REF!,#REF!,1),"") ->  | E86: =IFERROR(VLOOKUP(D86,OFFSET(cod!$C$6,,,COUNTA(cod!C:C),2),2,0),"") -> 
A87: =IFERROR(RANK(#REF!,#REF!,1),"") ->  | E87: =IFERROR(VLOOKUP(D87,OFFSET(cod!$C$6,,,COUNTA(cod!C:C),2),2,0),"") -> 
A88: =IFERROR(RANK(#REF!,#REF!,1),"") ->  | E88: =IFERROR(VLOOKUP(D88,OFFSET(cod!$C$6,,,COUNTA(cod!C:C),2),2,0),"") -> 
A89: =IFERROR(RANK(#REF!,#REF!,1),"") ->  | E89: =IFERROR(VLOOKUP(D89,OFFSET(cod!$C$6,,,COUNTA(cod!C:C),2),2,0),"") -> 
A90: =IFERROR(RANK(#REF!,#REF!,1),"") ->  | E90: =IFERROR(VLOOKUP(D90,OFFSET(cod!$C$6,,,COUNTA(cod!C:C),2),2,0),"") -> 
A91: =IFERROR(RANK(#REF!,#REF!,1),"") ->  | E91: =IFERROR(VLOOKUP(D91,OFFSET(cod!$C$6,,,COUNTA(cod!C:C),2),2,0),"") -> 
A92: =IFERROR(RANK(#REF!,#REF!,1),"") ->  | E92: =IFERROR(VLOOKUP(D92,OFFSET(cod!$C$6,,,COUNTA(cod!C:C),2),2,0),"") -> 
A93: =IFERROR(RANK(#REF!,#REF!,1),"") ->  | E93: =IFERROR(VLOOKUP(D93,OFFSET(cod!$C$6,,,COUNTA(cod!C:C),2),2,0),"") -> 
A94: =IFERROR(RANK(#REF!,#REF!,1),"") ->  | E94: =IFERROR(VLOOKUP(D94,OFFSET(cod!$C$6,,,COUNTA(cod!C:C),2),2,0),"") -> 
A95: =IFERROR(RANK(#REF!,#REF!,1),"") ->  | E95: =IFERROR(VLOOKUP(D95,OFFSET(cod!$C$6,,,COUNTA(cod!C:C),2),2,0),"") -> 
A96: =IFERROR(RANK(#REF!,#REF!,1),"") ->  | E96: =IFERROR(VLOOKUP(D96,OFFSET(cod!$C$6,,,COUNTA(cod!C:C),2),2,0),"") -> 
A97: =IFERROR(RANK(#REF!,#REF!,1),"") ->  | E97: =IFERROR(VLOOKUP(D97,OFFSET(cod!$C$6,,,COUNTA(cod!C:C),2),2,0),"") -> 
A98: =IFERROR(RANK(#REF!,#REF!,1),"") ->  | E98: =IFERROR(VLOOKUP(D98,OFFSET(cod!$C$6,,,COUNTA(cod!C:C),2),2,0),"") -> 
A99: =IFERROR(RANK(#REF!,#REF!,1),"") ->  | E99: =IFERROR(VLOOKUP(D99,OFFSET(cod!$C$6,,,COUNTA(cod!C:C),2),2,0),"") -> 
A100: =IFERROR(RANK(#REF!,#REF!,1),"") ->  | E100: =IFERROR(VLOOKUP(D100,OFFSET(cod!$C$6,,,COUNTA(cod!C:C),2),2,0),"") -> 
A101: =IFERROR(RANK(#REF!,#REF!,1),"") ->  | E101: =IFERROR(VLOOKUP(D101,OFFSET(cod!$C$6,,,COUNTA(cod!C:C),2),2,0),"") -> 
A102: =IFERROR(RANK(#REF!,#REF!,1),"") ->  | E102: =IFERROR(VLOOKUP(D102,OFFSET(cod!$C$6,,,COUNTA(cod!C:C),2),2,0),"") -> 
A103: =IFERROR(RANK(#REF!,#REF!,1),"") ->  | E103: =IFERROR(VLOOKUP(D103,OFFSET(cod!$C$6,,,COUNTA(cod!C:C),2),2,0),"") -> 
A104: =IFERROR(RANK(#REF!,#REF!,1),"") ->  | E104: =IFERROR(VLOOKUP(D104,OFFSET(cod!$C$6,,,COUNTA(cod!C:C),2),2,0),"") -> 
A105: =IFERROR(RANK(#REF!,#REF!,1),"") ->  | E105: =IFERROR(VLOOKUP(D105,OFFSET(cod!$C$6,,,COUNTA(cod!C:C),2),2,0),"") -> 
A106: =IFERROR(RANK(#REF!,#REF!,1),"") ->  | E106: =IFERROR(VLOOKUP(D106,OFFSET(cod!$C$6,,,COUNTA(cod!C:C),2),2,0),"") -> 
A107: =IFERROR(RANK(#REF!,#REF!,1),"") ->  | E107: =IFERROR(VLOOKUP(D107,OFFSET(cod!$C$6,,,COUNTA(cod!C:C),2),2,0),"") -> 
A108: =IFERROR(RANK(#REF!,#REF!,1),"") ->  | E108: =IFERROR(VLOOKUP(D108,OFFSET(cod!$C$6,,,COUNTA(cod!C:C),2),2,0),"") -> 
A109: =IFERROR(RANK(#REF!,#REF!,1),"") ->  | E109: =IFERROR(VLOOKUP(D109,OFFSET(cod!$C$6,,,COUNTA(cod!C:C),2),2,0),"") -> 
A110: =IFERROR(RANK(#REF!,#REF!,1),"") ->  | E110: =IFERROR(VLOOKUP(D110,OFFSET(cod!$C$6,,,COUNTA(cod!C:C),2),2,0),"") -> 
A111: =IFERROR(RANK(#REF!,#REF!,1),"") ->  | E111: =IFERROR(VLOOKUP(D111,OFFSET(cod!$C$6,,,COUNTA(cod!C:C),2),2,0),"") -> 
A112: =IFERROR(RANK(#REF!,#REF!,1),"") ->  | E112: =IFERROR(VLOOKUP(D112,OFFSET(cod!$C$6,,,COUNTA(cod!C:C),2),2,0),"") -> 
A113: =IFERROR(RANK(#REF!,#REF!,1),"") ->  | E113: =IFERROR(VLOOKUP(D113,OFFSET(cod!$C$6,,,COUNTA(cod!C:C),2),2,0),"") -> 
A114: =IFERROR(RANK(#REF!,#REF!,1),"") ->  | E114: =IFERROR(VLOOKUP(D114,OFFSET(cod!$C$6,,,COUNTA(cod!C:C),2),2,0),"") -> 
A115: =IFERROR(RANK(#REF!,#REF!,1),"") ->  | E115: =IFERROR(VLOOKUP(D115,OFFSET(cod!$C$6,,,COUNTA(cod!C:C),2),2,0),"") -> 
A116: =IFERROR(RANK(#REF!,#REF!,1),"") ->  | E116: =IFERROR(VLOOKUP(D116,OFFSET(cod!$C$6,,,COUNTA(cod!C:C),2),2,0),"") -> 
A117: =IFERROR(RANK(#REF!,#REF!,1),"") ->  | E117: =IFERROR(VLOOKUP(D117,OFFSET(cod!$C$6,,,COUNTA(cod!C:C),2),2,0),"") -> 
A118: =IFERROR(RANK(#REF!,#REF!,1),"") ->  | E118: =IFERROR(VLOOKUP(D118,OFFSET(cod!$C$6,,,COUNTA(cod!C:C),2),2,0),"") -> 
A119: =IFERROR(RANK(#REF!,#REF!,1),"") ->  | E119: =IFERROR(VLOOKUP(D119,OFFSET(cod!$C$6,,,COUNTA(cod!C:C),2),2,0),"") -> 
A120: =IFERROR(RANK(#REF!,#REF!,1),"") ->  | E120: =IFERROR(VLOOKUP(D120,OFFSET(cod!$C$6,,,COUNTA(cod!C:C),2),2,0),"") -> 
A121: =IFERROR(RANK(#REF!,#REF!,1),"") ->  | E121: =IFERROR(VLOOKUP(D121,OFFSET(cod!$C$6,,,COUNTA(cod!C:C),2),2,0),"") -> 
A122: =IFERROR(RANK(#REF!,#REF!,1),"") ->  | E122: =IFERROR(VLOOKUP(D122,OFFSET(cod!$C$6,,,COUNTA(cod!C:C),2),2,0),"") -> 
A123: =IFERROR(RANK(#REF!,#REF!,1),"") ->  | E123: =IFERROR(VLOOKUP(D123,OFFSET(cod!$C$6,,,COUNTA(cod!C:C),2),2,0),"") -> 
A124: =IFERROR(RANK(#REF!,#REF!,1),"") ->  | E124: =IFERROR(VLOOKUP(D124,OFFSET(cod!$C$6,,,COUNTA(cod!C:C),2),2,0),"") -> 
A125: =IFERROR(RANK(#REF!,#REF!,1),"") ->  | E125: =IFERROR(VLOOKUP(D125,OFFSET(cod!$C$6,,,COUNTA(cod!C:C),2),2,0),"") -> 
A126: =IFERROR(RANK(#REF!,#REF!,1),"") ->  | E126: =IFERROR(VLOOKUP(D126,OFFSET(cod!$C$6,,,COUNTA(cod!C:C),2),2,0),"") -> 
A127: =IFERROR(RANK(#REF!,#REF!,1),"") ->  | E127: =IFERROR(VLOOKUP(D127,OFFSET(cod!$C$6,,,COUNTA(cod!C:C),2),2,0),"") -> 
A128: =IFERROR(RANK(#REF!,#REF!,1),"") ->  | E128: =IFERROR(VLOOKUP(D128,OFFSET(cod!$C$6,,,COUNTA(cod!C:C),2),2,0),"") -> 
A129: =IFERROR(RANK(#REF!,#REF!,1),"") ->  | E129: =IFERROR(VLOOKUP(D129,OFFSET(cod!$C$6,,,COUNTA(cod!C:C),2),2,0),"") -> 
A130: =IFERROR(RANK(#REF!,#REF!,1),"") ->  | E130: =IFERROR(VLOOKUP(D130,OFFSET(cod!$C$6,,,COUNTA(cod!C:C),2),2,0),"") -> 
A131: =IFERROR(RANK(#REF!,#REF!,1),"") ->  | E131: =IFERROR(VLOOKUP(D131,OFFSET(cod!$C$6,,,COUNTA(cod!C:C),2),2,0),"") -> 
A132: =IFERROR(RANK(#REF!,#REF!,1),"") ->  | E132: =IFERROR(VLOOKUP(D132,OFFSET(cod!$C$6,,,COUNTA(cod!C:C),2),2,0),"") -> 
A133: =IFERROR(RANK(#REF!,#REF!,1),"") ->  | E133: =IFERROR(VLOOKUP(D133,OFFSET(cod!$C$6,,,COUNTA(cod!C:C),2),2,0),"") -> 
A134: =IFERROR(RANK(#REF!,#REF!,1),"") ->  | E134: =IFERROR(VLOOKUP(D134,OFFSET(cod!$C$6,,,COUNTA(cod!C:C),2),2,0),"") -> 
A135: =IFERROR(RANK(#REF!,#REF!,1),"") ->  | B135: =IF(AND(C135<>"",D135<>""),B134+1,"") ->  | E135: =IFERROR(VLOOKUP(D135,OFFSET(cod!$C$6,,,COUNTA(cod!C:C),2),2,0),"") -> 
A136: =IFERROR(RANK(#REF!,#REF!,1),"") ->  | E136: =IFERROR(VLOOKUP(D136,OFFSET(cod!$C$6,,,COUNTA(cod!C:C),2),2,0),"") -> 
A137: =IFERROR(RANK(#REF!,#REF!,1),"") ->  | E137: =IFERROR(VLOOKUP(D137,OFFSET(cod!$C$6,,,COUNTA(cod!C:C),2),2,0),"") -> 
A138: =IFERROR(RANK(#REF!,#REF!,1),"") ->  | E138: =IFERROR(VLOOKUP(D138,OFFSET(cod!$C$6,,,COUNTA(cod!C:C),2),2,0),"") -> 
A139: =IFERROR(RANK(#REF!,#REF!,1),"") ->  | E139: =IFERROR(VLOOKUP(D139,OFFSET(cod!$C$6,,,COUNTA(cod!C:C),2),2,0),"") -> 
A140: =IFERROR(RANK(#REF!,#REF!,1),"") ->  | E140: =IFERROR(VLOOKUP(D140,OFFSET(cod!$C$6,,,COUNTA(cod!C:C),2),2,0),"") -> 
A141: =IFERROR(RANK(#REF!,#REF!,1),"") ->  | E141: =IFERROR(VLOOKUP(D141,OFFSET(cod!$C$6,,,COUNTA(cod!C:C),2),2,0),"") -> 
A142: =IFERROR(RANK(#REF!,#REF!,1),"") ->  | E142: =IFERROR(VLOOKUP(D142,OFFSET(cod!$C$6,,,COUNTA(cod!C:C),2),2,0),"") -> 
A143: =IFERROR(RANK(#REF!,#REF!,1),"") ->  | E143: =IFERROR(VLOOKUP(D143,OFFSET(cod!$C$6,,,COUNTA(cod!C:C),2),2,0),"") -> 
A144: =IFERROR(RANK(#REF!,#REF!,1),"") ->  | E144: =IFERROR(VLOOKUP(D144,OFFSET(cod!$C$6,,,COUNTA(cod!C:C),2),2,0),"") -> 
A145: =IFERROR(RANK(#REF!,#REF!,1),"") ->  | E145: =IFERROR(VLOOKUP(D145,OFFSET(cod!$C$6,,,COUNTA(cod!C:C),2),2,0),"") -> 
A146: =IFERROR(RANK(#REF!,#REF!,1),"") ->  | E146: =IFERROR(VLOOKUP(D146,OFFSET(cod!$C$6,,,COUNTA(cod!C:C),2),2,0),"") -> 
A147: =IFERROR(RANK(#REF!,#REF!,1),"") ->  | E147: =IFERROR(VLOOKUP(D147,OFFSET(cod!$C$6,,,COUNTA(cod!C:C),2),2,0),"") -> 
A148: =IFERROR(RANK(#REF!,#REF!,1),"") ->  | E148: =IFERROR(VLOOKUP(D148,OFFSET(cod!$C$6,,,COUNTA(cod!C:C),2),2,0),"") -> 
A149: =IFERROR(RANK(#REF!,#REF!,1),"") ->  | E149: =IFERROR(VLOOKUP(D149,OFFSET(cod!$C$6,,,COUNTA(cod!C:C),2),2,0),"") -> 
A150: =IFERROR(RANK(#REF!,#REF!,1),"") ->  | E150: =IFERROR(VLOOKUP(D150,OFFSET(cod!$C$6,,,COUNTA(cod!C:C),2),2,0),"") -> 
A151: =IFERROR(RANK(#REF!,#REF!,1),"") ->  | E151: =IFERROR(VLOOKUP(D151,OFFSET(cod!$C$6,,,COUNTA(cod!C:C),2),2,0),"") -> 
A152: =IFERROR(RANK(#REF!,#REF!,1),"") ->  | E152: =IFERROR(VLOOKUP(D152,OFFSET(cod!$C$6,,,COUNTA(cod!C:C),2),2,0),"") -> 
A153: =IFERROR(RANK(#REF!,#REF!,1),"") ->  | E153: =IFERROR(VLOOKUP(D153,OFFSET(cod!$C$6,,,COUNTA(cod!C:C),2),2,0),"") -> 
A154: =IFERROR(RANK(#REF!,#REF!,1),"") ->  | E154: =IFERROR(VLOOKUP(D154,OFFSET(cod!$C$6,,,COUNTA(cod!C:C),2),2,0),"") -> 
A155: =IFERROR(RANK(#REF!,#REF!,1),"") ->  | E155: =IFERROR(VLOOKUP(D155,OFFSET(cod!$C$6,,,COUNTA(cod!C:C),2),2,0),"") -> 
A156: =IFERROR(RANK(#REF!,#REF!,1),"") ->  | E156: =IFERROR(VLOOKUP(D156,OFFSET(cod!$C$6,,,COUNTA(cod!C:C),2),2,0),"") -> 
A157: =IFERROR(RANK(#REF!,#REF!,1),"") ->  | E157: =IFERROR(VLOOKUP(D157,OFFSET(cod!$C$6,,,COUNTA(cod!C:C),2),2,0),"") -> 
A158: =IFERROR(RANK(#REF!,#REF!,1),"") ->  | E158: =IFERROR(VLOOKUP(D158,OFFSET(cod!$C$6,,,COUNTA(cod!C:C),2),2,0),"") -> 
A159: =IFERROR(RANK(#REF!,#REF!,1),"") ->  | E159: =IFERROR(VLOOKUP(D159,OFFSET(cod!$C$6,,,COUNTA(cod!C:C),2),2,0),"") -> 
A160: =IFERROR(RANK(#REF!,#REF!,1),"") ->  | E160: =IFERROR(VLOOKUP(D160,OFFSET(cod!$C$6,,,COUNTA(cod!C:C),2),2,0),"") -> 
A161: =IFERROR(RANK(#REF!,#REF!,1),"") ->  | E161: =IFERROR(VLOOKUP(D161,OFFSET(cod!$C$6,,,COUNTA(cod!C:C),2),2,0),"") -> 
A162: =IFERROR(RANK(#REF!,#REF!,1),"") ->  | E162: =IFERROR(VLOOKUP(D162,OFFSET(cod!$C$6,,,COUNTA(cod!C:C),2),2,0),"") -> 
A163: =IFERROR(RANK(#REF!,#REF!,1),"") ->  | E163: =IFERROR(VLOOKUP(D163,OFFSET(cod!$C$6,,,COUNTA(cod!C:C),2),2,0),"") -> 
A164: =IFERROR(RANK(#REF!,#REF!,1),"") ->  | E164: =IFERROR(VLOOKUP(D164,OFFSET(cod!$C$6,,,COUNTA(cod!C:C),2),2,0),"") -> 
A165: =IFERROR(RANK(#REF!,#REF!,1),"") ->  | E165: =IFERROR(VLOOKUP(D165,OFFSET(cod!$C$6,,,COUNTA(cod!C:C),2),2,0),"") -> 
A166: =IFERROR(RANK(#REF!,#REF!,1),"") ->  | E166: =IFERROR(VLOOKUP(D166,OFFSET(cod!$C$6,,,COUNTA(cod!C:C),2),2,0),"") -> 
A167: =IFERROR(RANK(#REF!,#REF!,1),"") ->  | E167: =IFERROR(VLOOKUP(D167,OFFSET(cod!$C$6,,,COUNTA(cod!C:C),2),2,0),"") -> 
A168: =IFERROR(RANK(#REF!,#REF!,1),"") ->  | E168: =IFERROR(VLOOKUP(D168,OFFSET(cod!$C$6,,,COUNTA(cod!C:C),2),2,0),"") -> 
A169: =IFERROR(RANK(#REF!,#REF!,1),"") ->  | E169: =IFERROR(VLOOKUP(D169,OFFSET(cod!$C$6,,,COUNTA(cod!C:C),2),2,0),"") -> 
A170: =IFERROR(RANK(#REF!,#REF!,1),"") ->  | E170: =IFERROR(VLOOKUP(D170,OFFSET(cod!$C$6,,,COUNTA(cod!C:C),2),2,0),"") -> 
A171: =IFERROR(RANK(#REF!,#REF!,1),"") ->  | E171: =IFERROR(VLOOKUP(D171,OFFSET(cod!$C$6,,,COUNTA(cod!C:C),2),2,0),"") -> 
A172: =IFERROR(RANK(#REF!,#REF!,1),"") ->  | E172: =IFERROR(VLOOKUP(D172,OFFSET(cod!$C$6,,,COUNTA(cod!C:C),2),2,0),"") -> 
A173: =IFERROR(RANK(#REF!,#REF!,1),"") ->  | E173: =IFERROR(VLOOKUP(D173,OFFSET(cod!$C$6,,,COUNTA(cod!C:C),2),2,0),"") -> 
A174: =IFERROR(RANK(#REF!,#REF!,1),"") ->  | E174: =IFERROR(VLOOKUP(D174,OFFSET(cod!$C$6,,,COUNTA(cod!C:C),2),2,0),"") -> 
A175: =IFERROR(RANK(#REF!,#REF!,1),"") ->  | E175: =IFERROR(VLOOKUP(D175,OFFSET(cod!$C$6,,,COUNTA(cod!C:C),2),2,0),"") -> 
A176: =IFERROR(RANK(#REF!,#REF!,1),"") ->  | E176: =IFERROR(VLOOKUP(D176,OFFSET(cod!$C$6,,,COUNTA(cod!C:C),2),2,0),"") -> 
A177: =IFERROR(RANK(#REF!,#REF!,1),"") ->  | E177: =IFERROR(VLOOKUP(D177,OFFSET(cod!$C$6,,,COUNTA(cod!C:C),2),2,0),"") -> 
A178: =IFERROR(RANK(#REF!,#REF!,1),"") ->  | E178: =IFERROR(VLOOKUP(D178,OFFSET(cod!$C$6,,,COUNTA(cod!C:C),2),2,0),"") -> 
A179: =IFERROR(RANK(#REF!,#REF!,1),"") ->  | E179: =IFERROR(VLOOKUP(D179,OFFSET(cod!$C$6,,,COUNTA(cod!C:C),2),2,0),"") -> 
A180: =IFERROR(RANK(#REF!,#REF!,1),"") ->  | E180: =IFERROR(VLOOKUP(D180,OFFSET(cod!$C$6,,,COUNTA(cod!C:C),2),2,0),"") -> 
A181: =IFERROR(RANK(#REF!,#REF!,1),"") ->  | E181: =IFERROR(VLOOKUP(D181,OFFSET(cod!$C$6,,,COUNTA(cod!C:C),2),2,0),"") -> 
A182: =IFERROR(RANK(#REF!,#REF!,1),"") ->  | E182: =IFERROR(VLOOKUP(D182,OFFSET(cod!$C$6,,,COUNTA(cod!C:C),2),2,0),"") -> 
A183: =IFERROR(RANK(#REF!,#REF!,1),"") ->  | E183: =IFERROR(VLOOKUP(D183,OFFSET(cod!$C$6,,,COUNTA(cod!C:C),2),2,0),"") -> 
A184: =IFERROR(RANK(#REF!,#REF!,1),"") ->  | E184: =IFERROR(VLOOKUP(D184,OFFSET(cod!$C$6,,,COUNTA(cod!C:C),2),2,0),"") -> 
A185: =IFERROR(RANK(#REF!,#REF!,1),"") ->  | E185: =IFERROR(VLOOKUP(D185,OFFSET(cod!$C$6,,,COUNTA(cod!C:C),2),2,0),"") -> 
A186: =IFERROR(RANK(#REF!,#REF!,1),"") ->  | E186: =IFERROR(VLOOKUP(D186,OFFSET(cod!$C$6,,,COUNTA(cod!C:C),2),2,0),"") -> 
A187: =IFERROR(RANK(#REF!,#REF!,1),"") ->  | E187: =IFERROR(VLOOKUP(D187,OFFSET(cod!$C$6,,,COUNTA(cod!C:C),2),2,0),"") -> 
A188: =IFERROR(RANK(#REF!,#REF!,1),"") ->  | E188: =IFERROR(VLOOKUP(D188,OFFSET(cod!$C$6,,,COUNTA(cod!C:C),2),2,0),"") -> 
A189: =IFERROR(RANK(#REF!,#REF!,1),"") ->  | E189: =IFERROR(VLOOKUP(D189,OFFSET(cod!$C$6,,,COUNTA(cod!C:C),2),2,0),"") -> 
A190: =IFERROR(RANK(#REF!,#REF!,1),"") ->  | E190: =IFERROR(VLOOKUP(D190,OFFSET(cod!$C$6,,,COUNTA(cod!C:C),2),2,0),"") -> 
A191: =IFERROR(RANK(#REF!,#REF!,1),"") ->  | E191: =IFERROR(VLOOKUP(D191,OFFSET(cod!$C$6,,,COUNTA(cod!C:C),2),2,0),"") -> 
A192: =IFERROR(RANK(#REF!,#REF!,1),"") ->  | E192: =IFERROR(VLOOKUP(D192,OFFSET(cod!$C$6,,,COUNTA(cod!C:C),2),2,0),"") -> 
A193: =IFERROR(RANK(#REF!,#REF!,1),"") ->  | E193: =IFERROR(VLOOKUP(D193,OFFSET(cod!$C$6,,,COUNTA(cod!C:C),2),2,0),"") -> 
A194: =IFERROR(RANK(#REF!,#REF!,1),"") ->  | E194: =IFERROR(VLOOKUP(D194,OFFSET(cod!$C$6,,,COUNTA(cod!C:C),2),2,0),"") -> 
A195: =IFERROR(RANK(#REF!,#REF!,1),"") ->  | E195: =IFERROR(VLOOKUP(D195,OFFSET(cod!$C$6,,,COUNTA(cod!C:C),2),2,0),"") -> 
A196: =IFERROR(RANK(#REF!,#REF!,1),"") ->  | E196: =IFERROR(VLOOKUP(D196,OFFSET(cod!$C$6,,,COUNTA(cod!C:C),2),2,0),"") -> 
A197: =IFERROR(RANK(#REF!,#REF!,1),"") ->  | E197: =IFERROR(VLOOKUP(D197,OFFSET(cod!$C$6,,,COUNTA(cod!C:C),2),2,0),"") -> 
A198: =IFERROR(RANK(#REF!,#REF!,1),"") ->  | E198: =IFERROR(VLOOKUP(D198,OFFSET(cod!$C$6,,,COUNTA(cod!C:C),2),2,0),"") -> 
A199: =IFERROR(RANK(#REF!,#REF!,1),"") ->  | B199: =IF(AND(C199<>"",D199<>""),B198+1,"") ->  | E199: =IFERROR(VLOOKUP(D199,OFFSET(cod!$C$6,,,COUNTA(cod!C:C),2),2,0),"") -> 
A200: =IFERROR(RANK(#REF!,#REF!,1),"") ->  | E200: =IFERROR(VLOOKUP(D200,OFFSET(cod!$C$6,,,COUNTA(cod!C:C),2),2,0),"") -> 
A201: =IFERROR(RANK(#REF!,#REF!,1),"") ->  | E201: =IFERROR(VLOOKUP(D201,OFFSET(cod!$C$6,,,COUNTA(cod!C:C),2),2,0),"") -> 
A202: =IFERROR(RANK(#REF!,#REF!,1),"") ->  | E202: =IFERROR(VLOOKUP(D202,OFFSET(cod!$C$6,,,COUNTA(cod!C:C),2),2,0),"") -> 
A203: =IFERROR(RANK(#REF!,#REF!,1),"") ->  | E203: =IFERROR(VLOOKUP(D203,OFFSET(cod!$C$6,,,COUNTA(cod!C:C),2),2,0),"") -> 
... 347 more rows

Sheet inv_c
C2: رقم الصنف | D2: 3927924 | G2: رصيد اول المدة
C3: اسم الصنف | D3: كاوتشة سوستة خلفى - كينج لونج | G3: 214
A5: م | B5: التاريخ | C5: رقم الاذن | D5: وارد | E5: منصرف | F5: رصيد متاح | G5: مخزن الاضافة

Sheet stor_rob
B2: من تاريخ | C2: 2021-07-01 | D2: تقرير حركة المخزن | G2: اسم المخزن
B3: الى تاريخ | C3: 2021-07-30 | G3: رئيسي
A6: 1 | B6: التاريخ | C6: كود الصنف | D6: اسم الصنف | E6: وارد | F6: منصرف | G6: الرصيد المتاح

Sheet cod
C1: شاشة اكواد الاصناف | H1: اسماء المخازن
H2: رئيسي
H3: موقع العين السخنة
H4: السادات اسفلت
B5: م | C5: كود الصنف | D5: اسم الصنف | E5: رصيد اول المدة | F5: ملاحظات | H5: السادات خرسانة
B6: =IF(D6<>"",MAX($B$5:B5)+1,"") -> 1 | C6: 1 | D6: a | E6: 3378 | H6: الواحات
B7: =IF(D7<>"",MAX($B$5:B6)+1,"") -> 2 | C7: 2 | D7: s | E7: 6368 | H7: طريق اكتوبر
B8: =IF(D8<>"",MAX($B$5:B7)+1,"") -> 3 | C8: 3 | D8: d | E8: 6272 | H8: خلاطة اكتوبر امان
B9: =IF(D9<>"",MAX($B$5:B8)+1,"") -> 4 | C9: 4 | D9: h | E9: 6818
B10: =IF(D10<>"",MAX($B$5:B9)+1,"") -> 5 | C10: 5 | D10: t | E10: 9040
B11: =IF(D11<>"",MAX($B$5:B10)+1,"") -> 6 | C11: 22 | D11: jh | E11: 0
B12: =IF(D12<>"",MAX($B$5:B11)+1,"") -> 7 | C12: 4320221 | D12: قاعدة عمة مقاس مسمار -10 - فرنساوى | E12: 1
B13: =IF(D13<>"",MAX($B$5:B12)+1,"") -> 8 | C13: 4320222 | D13: قاعدة عمة - فرنساوى | E13: 2
B14: =IF(D14<>"",MAX($B$5:B13)+1,"") -> 9 | D14: صنف | E14: 3
B15: =IF(D15<>"",MAX($B$5:B14)+1,"") -> 10 | D15: مصروفات صيانة تشغيلية | E15: 4
B16: =IF(D16<>"",MAX($B$5:B15)+1,"") -> 11 | C16: 5004181 | D16: plasticser ROCK -G X | E16: 5
B17: =IF(D17<>"",MAX($B$5:B16)+1,"") -> 12 | C17: 3918478 | D17: مسمار كونتر + وردة + سوستة 12 مملى | E17: 6
B18: =IF(D18<>"",MAX($B$5:B17)+1,"") -> 13 | D18: مصروف صيانة | E18: 7
B19: =IF(D19<>"",MAX($B$5:B18)+1,"") -> 14 | D19: BST 30*2.5 ( لاغى ) - | E19: 8
B20: =IF(D20<>"",MAX($B$5:B19)+1,"") -> 15 | C20: 4319810 | D20: لفة صوف 1بوصة 24كجم | E20: 9
B21: =IF(D21<>"",MAX($B$5:B20)+1,"") -> 16 | C21: 15086 | D21: زيت SHELL الاحمر - 4 لتر - 3000 كم | E21: 10
B22: =IF(D22<>"",MAX($B$5:B21)+1,"") -> 17 | D22: زيت فرامل بندكس المنار ازرق - 400 م | E22: 11
B23: =IF(D23<>"",MAX($B$5:B22)+1,"") -> 18 | D23: خرسانه test | E23: 12
B24: =IF(D24<>"",MAX($B$5:B23)+1,"") -> 19 | D24: زيوت ووقود | E24: 13
B25: =IF(D25<>"",MAX($B$5:B24)+1,"") -> 20 | D25: زيوت | E25: 14
B26: =IF(D26<>"",MAX($B$5:B25)+1,"") -> 21 | D26: زيت كارونه موبيل 90w80 | E26: 15
B27: =IF(D27<>"",MAX($B$5:B26)+1,"") -> 22 | C27: 15112 | D27: 3جركن شيل اسود 20w50 | E27: 16
B28: =IF(D28<>"",MAX($B$5:B27)+1,"") -> 23 | C28: 15119 | D28: زيت موبيل 2000 | E28: 17
B29: =IF(D29<>"",MAX($B$5:B28)+1,"") -> 24 | C29: 15101 | D29: زيت فالفينا 80W90 - الجركن 4 لتر | E29: 18
B30: =IF(D30<>"",MAX($B$5:B29)+1,"") -> 25 | C30: 15102 | D30: زيت فالفلينا تروس 140 | E30: 19
B31: =IF(D31<>"",MAX($B$5:B30)+1,"") -> 26 | C31: 15107 | D31: زيت هيدروليك توتال - AZOLLA ZS - الجركن 16 لتر | E31: 20
B32: =IF(D32<>"",MAX($B$5:B31)+1,"") -> 27 | C32: 15108 | D32: زيت تعاون 50 | E32: 21
B33: =IF(D33<>"",MAX($B$5:B32)+1,"") -> 28 | C33: 15109 | D33: زيت شل 3000 كيلو -الجركن 5 لتر | E33: 22
B34: =IF(D34<>"",MAX($B$5:B33)+1,"") -> 29 | C34: 15081 | D34: زيت تروس تعاون HP 140 - الجركن 3 لتر | E34: 23
B35: =IF(D35<>"",MAX($B$5:B34)+1,"") -> 30 | C35: 15085 | D35: زيت موبيل سوبر 1000 XHP - الجركن 4 لتر | E35: 24
B36: =IF(D36<>"",MAX($B$5:B35)+1,"") -> 31 | C36: 15093 | D36: زيت موبيل 20W40 - مطلوب فحصة - الجركن 4 لتر | E36: 25
B37: =IF(D37<>"",MAX($B$5:B36)+1,"") -> 32 | C37: 15094 | D37: زيت موبيل سوبر 5000 | E37: 26
B38: =IF(D38<>"",MAX($B$5:B37)+1,"") -> 33 | C38: 15095 | D38: زيت موبيل سوبر 1000 - الجركن 5لتر | E38: 27
B39: =IF(D39<>"",MAX($B$5:B38)+1,"") -> 34 | C39: 15096 | D39: زيت شل 5000 - الجركن 4 لتر | E39: 28
B40: =IF(D40<>"",MAX($B$5:B39)+1,"") -> 35 | C40: 15100 | D40: زيت شنبر | E40: 29
B41: =IF(D41<>"",MAX($B$5:B40)+1,"") -> 36 | C41: 15029 | D41: زيت باور جانك( ابيض ) 0 | E41: 30 | F41: =17570-17790 -> -220
B42: =IF(D42<>"",MAX($B$5:B41)+1,"") -> 37 | C42: 15028 | D42: زيت موبيل سوبر 1000 super | E42: 31
B43: =IF(D43<>"",MAX($B$5:B42)+1,"") -> 38 | C43: 15033 | D43: زيت تروس 90W80 فلفلينه رولتكس 140- 85 درجه | E43: 32
B44: =IF(D44<>"",MAX($B$5:B43)+1,"") -> 39 | C44: 15034 | D44: زيت جير بوكس SHC630 | E44: 33
B45: =IF(D45<>"",MAX($B$5:B44)+1,"") -> 40 | C45: 15040 | D45: زيت ماتور مانتراك DE0(15W-40)0 | E45: 34
B46: =IF(D46<>"",MAX($B$5:B45)+1,"") -> 41 | C46: 15035 | D46: زيت فتيس TDT050 | E46: 35
B47: =IF(D47<>"",MAX($B$5:B46)+1,"") -> 42 | C47: 15045 | D47: زيت هيدروليك 68 -جركن 16لتر | E47: 36
B48: =IF(D48<>"",MAX($B$5:B47)+1,"") -> 43 | C48: 15046 | D48: زيت هيدروليك 68 ممتاز | E48: 37
B49: =IF(D49<>"",MAX($B$5:B48)+1,"") -> 44 | C49: 15066 | D49: زيت سوبر ستان N20 - تعاون | E49: 38
B50: =IF(D50<>"",MAX($B$5:B49)+1,"") -> 45 | C50: 15077 | D50: زيت موبيل دلفاك MX 20W50 - الجركن 5 لتر | E50: 39
B51: =IF(D51<>"",MAX($B$5:B50)+1,"") -> 46 | C51: 15078 | D51: زيت موبيل دلفاك MX 20W50 - علبة 1 لتر | E51: 40
B52: =IF(D52<>"",MAX($B$5:B51)+1,"") -> 47 | C52: 15061 | D52: زيت موبيل دلفاك تروس 1350 - SAE | E52: 41
B53: =IF(D53<>"",MAX($B$5:B52)+1,"") -> 48 | C53: 15059 | D53: زيت موبيل دلفاك 1350 | E53: 42
B54: =IF(D54<>"",MAX($B$5:B53)+1,"") -> 49 | C54: 15060 | D54: زيت باكم - روسى 2/1 لتر | E54: 43
B55: =IF(D55<>"",MAX($B$5:B54)+1,"") -> 50 | C55: 15048 | D55: زيت هيدروليك - 16 لتر | E55: 44
B56: =IF(D56<>"",MAX($B$5:B55)+1,"") -> 51 | C56: 15050 | D56: زيت عصاية فتيس - المانى | E56: 45
B57: =IF(D57<>"",MAX($B$5:B56)+1,"") -> 52 | C57: 15052 | D57: زيت توتال -10000 | E57: 46
B58: =IF(D58<>"",MAX($B$5:B57)+1,"") -> 53 | C58: 15053 | D58: زيت فتيس اوتوماتك | E58: 47
B59: =IF(D59<>"",MAX($B$5:B58)+1,"") -> 54 | C59: 15079 | D59: زيت موبيل XHP - الجركن 5 لتر | E59: 48
B60: =IF(D60<>"",MAX($B$5:B59)+1,"") -> 55 | C60: 15080 | D60: زيت هيدروليك - مستعمل ( مرتجع من المعدات ) | E60: 49
B61: =IF(D61<>"",MAX($B$5:B60)+1,"") -> 56 | C61: 15089 | D61: زيت فرامل بندكس المنار ازرق - 400 مملى | E61: 50
B62: =IF(D62<>"",MAX($B$5:B61)+1,"") -> 57 | C62: 15090 | D62: زيت باور موبيل 220 - 1 لتر | E62: 51
B63: =IF(D63<>"",MAX($B$5:B62)+1,"") -> 58 | C63: 15087 | D63: زيت SHEL الاحمر - 300 كم - الجركن 4 لتر | E63: 52
B64: =IF(D64<>"",MAX($B$5:B63)+1,"") -> 59 | C64: 15083 | D64: زيت موبيل دلفاك MX 20W50 - الجركن 4 لتر | E64: 53
B65: =IF(D65<>"",MAX($B$5:B64)+1,"") -> 60 | C65: 15084 | D65: زيت باكم - العلبة 400 جم - بندكس - سعودى | E65: 54
B66: =IF(D66<>"",MAX($B$5:B65)+1,"") -> 61 | C66: 15067 | D66: زيت سوبر ستان 50 - تعاون - الجركن 16 لتر | E66: 55
B67: =IF(D67<>"",MAX($B$5:B66)+1,"") -> 62 | C67: 15068 | D67: زيت هيدروليك - جركن 20 لتر | E67: 56
B68: =IF(D68<>"",MAX($B$5:B67)+1,"") -> 63 | C68: 15069 | D68: زيت تعاون هيدروليك - جركن 6 لتر | E68: 57
B69: =IF(D69<>"",MAX($B$5:B68)+1,"") -> 64 | C69: 15070 | D69: زيت موبيل 15W50 - الجركن 4 لتر | E69: 58
B70: =IF(D70<>"",MAX($B$5:B69)+1,"") -> 65 | C70: 15071 | D70: زيت موبيل 1000 20W50 - علبة 1 لتر | E70: 59
B71: =IF(D71<>"",MAX($B$5:B70)+1,"") -> 66 | C71: 15072 | D71: زيت ديلو - 5 لتر | E71: 60
B72: =IF(D72<>"",MAX($B$5:B71)+1,"") -> 67 | C72: 15073 | D72: زيت موبيل MX50 - جركن 5 لتر | E72: 61
B73: =IF(D73<>"",MAX($B$5:B72)+1,"") -> 68 | C73: 15076 | D73: زيت كالتكس SAE40AP CD/SC | E73: 62
B74: =IF(D74<>"",MAX($B$5:B73)+1,"") -> 69 | C74: 15074 | D74: زيت موبيل MX 20 - الجركن 5 لتر | E74: 63
B75: =IF(D75<>"",MAX($B$5:B74)+1,"") -> 70 | C75: 15075 | D75: زيت موبيل MX - الجركن 4 لتر | E75: 64
B76: =IF(D76<>"",MAX($B$5:B75)+1,"") -> 71 | C76: 15082 | D76: زيت ماتور تلين - الجركن 4 لتر | E76: 65
B77: =IF(D77<>"",MAX($B$5:B76)+1,"") -> 72 | C77: 15091 | D77: زيت موبيل MX - زيت سائب | E77: 66
B78: =IF(D78<>"",MAX($B$5:B77)+1,"") -> 73 | C78: 15092 | D78: زيت موبيل MX 20W50 - الجركن 6 لتر | E78: 67
B79: =IF(D79<>"",MAX($B$5:B78)+1,"") -> 74 | C79: 15097 | D79: زيت موبيل سوبر 3000 | E79: 68
B80: =IF(D80<>"",MAX($B$5:B79)+1,"") -> 75 | C80: 15098 | D80: زيت تعاون 15W50 ( بنزين ) - سائب | E80: 69
B81: =IF(D81<>"",MAX($B$5:B80)+1,"") -> 76 | C81: 15099 | D81: زيت هيدروليك 68 موبيل DTE26 | E81: 70
B82: =IF(D82<>"",MAX($B$5:B81)+1,"") -> 77 | C82: 15103 | D82: زيت تروس درجة 90 - فلفلينا - موبيل - الجركن 4 لتر | E82: 71
B83: =IF(D83<>"",MAX($B$5:B82)+1,"") -> 78 | C83: 15105 | D83: زيت بترومين ديزل - الجركن 5 لتر | E83: 72
B84: =IF(D84<>"",MAX($B$5:B83)+1,"") -> 79 | C84: 15104 | D84: زيت ماتور مصر وان - جركن 4 لتر | E84: 73
B85: =IF(D85<>"",MAX($B$5:B84)+1,"") -> 80 | C85: 15106 | D85: زيت كلاتش - تايلاندى - انبوبة | E85: 74
B86: =IF(D86<>"",MAX($B$5:B85)+1,"") -> 81 | C86: 15031 | D86: زيت كارونه موبيل HD 85W90 | E86: 75
B87: =IF(D87<>"",MAX($B$5:B86)+1,"") -> 82 | C87: 15047 | D87: زيت توتال W 15 - 40 | E87: 76
B88: =IF(D88<>"",MAX($B$5:B87)+1,"") -> 83 | C88: 15030 | D88: زيت هيدروليك تي - تي اي 26 | E88: 77
B89: =IF(D89<>"",MAX($B$5:B88)+1,"") -> 84 | C89: 15032 | D89: زيت كارونه موبيل HD 85W90 تروس | E89: 78
B90: =IF(D90<>"",MAX($B$5:B89)+1,"") -> 85 | C90: 15051 | D90: زيت تعاون 20W50 - جركن 5 لتر | E90: 79
B91: =IF(D91<>"",MAX($B$5:B90)+1,"") -> 86 | C91: 15054 | D91: زيت ماتور تعاون 50 - 16 لتر | E91: 80
B92: =IF(D92<>"",MAX($B$5:B91)+1,"") -> 87 | C92: 15055 | D92: زيت فتيس فولفو 97342AT102 | E92: 81
B93: =IF(D93<>"",MAX($B$5:B92)+1,"") -> 88 | C93: 15056 | D93: زيت فخده فولفو 97303WB101 | E93: 82
B94: =IF(D94<>"",MAX($B$5:B93)+1,"") -> 89 | C94: 15057 | D94: زيت ماتور اكس لوب - 16لتر | E94: 83
B95: =IF(D95<>"",MAX($B$5:B94)+1,"") -> 90 | C95: 15058 | D95: زيت ماتور مصر للبترول مخصوص - 5 لتر | E95: 84
B96: =IF(D96<>"",MAX($B$5:B95)+1,"") -> 91 | C96: 15062 | D96: زيت موتور 50تعاون 20لتر | E96: 85
B97: =IF(D97<>"",MAX($B$5:B96)+1,"") -> 92 | C97: 15063 | D97: زيت موتور 50تعاون 4لتر | E97: 86
B98: =IF(D98<>"",MAX($B$5:B97)+1,"") -> 93 | C98: 15064 | D98: زيت باكم - مطلوب فحصه | E98: 87
B99: =IF(D99<>"",MAX($B$5:B98)+1,"") -> 94 | C99: 15065 | D99: زيت ت ع- جركن 5 كيلو | E99: 88
B100: =IF(D100<>"",MAX($B$5:B99)+1,"") -> 95 | C100: 15110 | D100: زيت ماتور تعاون سوبر ستان - الجركن 4 لتر | E100: 89
B101: =IF(D101<>"",MAX($B$5:B100)+1,"") -> 96 | C101: 15111 | D101: زيت تروس موبيل 140 - جيربوكس - الجركن 4 لتر | E101: 90
B102: =IF(D102<>"",MAX($B$5:B101)+1,"") -> 97 | C102: 15113 | D102: زيت مانتراك TDTO | E102: 91
B103: =IF(D103<>"",MAX($B$5:B102)+1,"") -> 98 | C103: 15114 | D103: زيت فتيس فلفلين 1 لتر | E103: 92
B104: =IF(D104<>"",MAX($B$5:B103)+1,"") -> 99 | C104: 15115 | D104: زيت ماتور 20W50 - جركن 20 لتر | E104: 93
B105: =IF(D105<>"",MAX($B$5:B104)+1,"") -> 100 | C105: 15116 | D105: زيت شل 5000 - الجركن 5 لتر | E105: 94
B106: =IF(D106<>"",MAX($B$5:B105)+1,"") -> 101 | C106: S PSF FCHS | D106: زيت باور ابيض S PSF FCHS | E106: 95
B107: =IF(D107<>"",MAX($B$5:B106)+1,"") -> 102 | C107: 15117 | D107: زيت باكم 500 ملي وطنيه | E107: 96
B108: =IF(D108<>"",MAX($B$5:B107)+1,"") -> 103 | C108: 15118 | D108: زيت ماتور موبيل 3000 - جركن 4 لتر | E108: 97
B109: =IF(D109<>"",MAX($B$5:B108)+1,"") -> 104 | D109: اكواد ملغيه N | E109: 98
B110: =IF(D110<>"",MAX($B$5:B109)+1,"") -> 105 | D110: زيت موبيل دلفاك shc-5 w 40 من الاكواد الملغيه | E110: 99
B111: =IF(D111<>"",MAX($B$5:B110)+1,"") -> 106 | D111: شحم موبيل - ملغى | E111: 100
B112: =IF(D112<>"",MAX($B$5:B111)+1,"") -> 107 | D112: زيت موبيل سوبر 3000 | E112: 101
B113: =IF(D113<>"",MAX($B$5:B112)+1,"") -> 108 | C113: 15049 | D113: زيت 15W40 - جركن 5 لتر ملغي | E113: 102
B114: =IF(D114<>"",MAX($B$5:B113)+1,"") -> 109 | C114: 18012 | D114: شحم موبيل MB -ملغي | E114: 103
B115: =IF(D115<>"",MAX($B$5:B114)+1,"") -> 110 | D115: سولار | E115: 104
B116: =IF(D116<>"",MAX($B$5:B115)+1,"") -> 111 | D116: شحوم | E116: 105
B117: =IF(D117<>"",MAX($B$5:B116)+1,"") -> 112 | C117: 18015 | D117: شحم الاهلية 2/1 كيلو | E117: 106
B118: =IF(D118<>"",MAX($B$5:B117)+1,"") -> 113 | C118: 18017 | D118: شحم جريس -EAGLE - GREASE - علبة 450 جرام | E118: 107
B119: =IF(D119<>"",MAX($B$5:B118)+1,"") -> 114 | C119: 18016 | D119: شحم بترومين MP3 | E119: 108
B120: =IF(D120<>"",MAX($B$5:B119)+1,"") -> 115 | C120: 18014 | D120: شحم الاهلية 118 - البستلة 14 كجم ( 13 كجم وزن فعلى ) | E120: 109
B121: =IF(D121<>"",MAX($B$5:B120)+1,"") -> 116 | C121: 18013 | D121: شحم موبيل 2/1 كيلو | E121: 110
B122: =IF(D122<>"",MAX($B$5:B121)+1,"") -> 117 | C122: 18011 | D122: شحم حراري | E122: 111
B123: =IF(D123<>"",MAX($B$5:B122)+1,"") -> 118 | D123: شحم اسود | E123: 112
B124: =IF(D124<>"",MAX($B$5:B123)+1,"") -> 119 | C124: 18018 | D124: بستلة شجم موبيل 18MBك | E124: 113
B125: =IF(D125<>"",MAX($B$5:B124)+1,"") -> 120 | D125: قطع غيار | E125: 114
B126: =IF(D126<>"",MAX($B$5:B125)+1,"") -> 121 | C126: 4320368 | D126: كامه وش سليندر استيراد | E126: 115
B127: =IF(D127<>"",MAX($B$5:B126)+1,"") -> 122 | C127: 4320369 | D127: وش تقسيمة استيراد | E127: 116
B128: =IF(D128<>"",MAX($B$5:B127)+1,"") -> 123 | C128: 4320370 | D128: طقم اصلاح محرك | E128: 117
B129: =IF(D129<>"",MAX($B$5:B128)+1,"") -> 124 | C129: 4320371 | D129: تيلة 6 ملي | E129: 118
B130: =IF(D130<>"",MAX($B$5:B129)+1,"") -> 125 | C130: 4320365 | D130: مارش دويتس 12 فولت | E130: 119
B131: =IF(D131<>"",MAX($B$5:B130)+1,"") -> 126 | C131: 4320366 | D131: رشاش جاز 1013 دويتس | E131: 120
B132: =IF(D132<>"",MAX($B$5:B131)+1,"") -> 127 | C132: 4320367 | D132: سوستة بنزين | E132: 121
B133: =IF(D133<>"",MAX($B$5:B132)+1,"") -> 128 | C133: 4320372 | D133: مارش دويتس 1013 اصلي | E133: 122
B134: =IF(D134<>"",MAX($B$5:B133)+1,"") -> 129 | C134: 4320373 | D134: خرطوم 3/4 R | E134: 123
B135: =IF(D135<>"",MAX($B$5:B134)+1,"") -> 130 | C135: 4320361 | D135: طقم حشو بستم صينيه واقف | E135: 124
B136: =IF(D136<>"",MAX($B$5:B135)+1,"") -> 131 | C136: 4320374 | D136: طقم حشو قلاب عمل امامي | E136: 125
B137: =IF(D137<>"",MAX($B$5:B136)+1,"") -> 132 | D137: فرشاه مجدول 9 مم | E137: 126
B138: =IF(D138<>"",MAX($B$5:B137)+1,"") -> 133 | D138: قطع غيار سيارات | E138: 127
B139: =IF(D139<>"",MAX($B$5:B138)+1,"") -> 134 | C139: 43202620 | D139: عدة مفتاح مقاس 8الي 32 | E139: 128
B140: =IF(D140<>"",MAX($B$5:B139)+1,"") -> 135 | C140: 43202621 | D140: عامود شفط ماتور | E140: 129
B141: =IF(D141<>"",MAX($B$5:B140)+1,"") -> 136 | C141: 43202619 | D141: بليه 5205ياباني | E141: 130
B142: =IF(D142<>"",MAX($B$5:B141)+1,"") -> 137 | C142: 43202605 | D142: حساس شجره فتيس | E142: 131
B143: =IF(D143<>"",MAX($B$5:B142)+1,"") -> 138 | C143: 43202606 | D143: زرار تشغيل حله خرسانه احمر | E143: 132
B144: =IF(D144<>"",MAX($B$5:B143)+1,"") -> 139 | C144: 43202607 | D144: قفل مزراب خلاطه اكتروس | E144: 133
B145: =IF(D145<>"",MAX($B$5:B144)+1,"") -> 140 | C145: 43202608 | D145: واير تشغيل حله خلاطه 7 متر | E145: 134
B146: =IF(D146<>"",MAX($B$5:B145)+1,"") -> 141 | C146: 43202609 | D146: واير تشغيل حله خلاطه 7.5 متر | E146: 135
B147: =IF(D147<>"",MAX($B$5:B146)+1,"") -> 142 | C147: 43202610 | D147: مرايا رصيف مرسيدس | E147: 136
B148: =IF(D148<>"",MAX($B$5:B147)+1,"") -> 143 | C148: 43202611 | D148: قشره سليم مع الرفراف | E148: 137
B149: =IF(D149<>"",MAX($B$5:B148)+1,"") -> 144 | C149: 43202612 | D149: شربون دينامو | E149: 138
B150: =IF(D150<>"",MAX($B$5:B149)+1,"") -> 145 | C150: 43202613 | D150: وش سلندر نيسان | E150: 139
B151: =IF(D151<>"",MAX($B$5:B150)+1,"") -> 146 | C151: 43202614 | D151: كامة وش سليندر | E151: 140
B152: =IF(D152<>"",MAX($B$5:B151)+1,"") -> 147 | C152: 43202615 | D152: طقم تروس كتينه استيراد | E152: 141
B153: =IF(D153<>"",MAX($B$5:B152)+1,"") -> 148 | C153: 43202616 | D153: تربو نيسان | E153: 142
B154: =IF(D154<>"",MAX($B$5:B153)+1,"") -> 149 | C154: 43202617 | D154: طلمبه جاز استيراد | E154: 143
B155: =IF(D155<>"",MAX($B$5:B154)+1,"") -> 150 | C155: 43202618 | D155: حساس كرنك | E155: 144
B156: =IF(D156<>"",MAX($B$5:B155)+1,"") -> 151 | C156: 43202546 | D156: مارش اوتوماتيك نيسان استيراد | E156: 145
B157: =IF(D157<>"",MAX($B$5:B156)+1,"") -> 152 | C157: 43202547 | D157: طبة وش تقسيمة مفكوكة من موتور الانتاير | E157: 146
B158: =IF(D158<>"",MAX($B$5:B157)+1,"") -> 153 | C158: 43202548 | D158: سيخ عمود تكعمات مفكوك من موتور الانتاير | E158: 147
B159: =IF(D159<>"",MAX($B$5:B158)+1,"") -> 154 | C159: 43202551 | D159: عوامة ديمكس صيني | E159: 148
B160: =IF(D160<>"",MAX($B$5:B159)+1,"") -> 155 | C160: 43202549 | D160: سير مشرشر 75*13 | E160: 149
B161: =IF(D161<>"",MAX($B$5:B160)+1,"") -> 156 | C161: 43202550 | D161: غطاء زيت موتور صيني | E161: 150
B162: =IF(D162<>"",MAX($B$5:B161)+1,"") -> 157 | C162: 43202552 | D162: صباب الماني | E162: 151
B163: =IF(D163<>"",MAX($B$5:B162)+1,"") -> 158 | C163: 43202553 | D163: صابع | E163: 152
B164: =IF(D164<>"",MAX($B$5:B163)+1,"") -> 159 | C164: 43202593 | D164: بليه 22209 | E164: 153
B165: =IF(D165<>"",MAX($B$5:B164)+1,"") -> 160 | C165: 43202597 | D165: بليه 22212 | E165: 154
B166: =IF(D166<>"",MAX($B$5:B165)+1,"") -> 161 | C166: 43202598 | D166: صليبه كردان مكنسه طريق | E166: 155
B167: =IF(D167<>"",MAX($B$5:B166)+1,"") -> 162 | C167: 43202599 | D167: ديسك مكنسه طريق | E167: 156
B168: =IF(D168<>"",MAX($B$5:B167)+1,"") -> 163 | C168: 43202600 | D168: طقم شمبر هراس | E168: 157
B169: =IF(D169<>"",MAX($B$5:B168)+1,"") -> 164 | C169: 43202601 | D169: طلمبه سياره بنزين | E169: 158
B170: =IF(D170<>"",MAX($B$5:B169)+1,"") -> 165 | C170: 43202602 | D170: قاعده طلمبه | E170: 159
B171: =IF(D171<>"",MAX($B$5:B170)+1,"") -> 166 | C171: 43202603 | D171: قنطره موتور | E171: 160
B172: =IF(D172<>"",MAX($B$5:B171)+1,"") -> 167 | C172: 43202604 | D172: كاوتشه عمه | E172: 161
B173: =IF(D173<>"",MAX($B$5:B172)+1,"") -> 168 | C173: 43202544 | D173: طقم بلي عجل امامي نيسان | E173: 162
B174: =IF(D174<>"",MAX($B$5:B173)+1,"") -> 169 | C174: 43202545 | D174: طاسة شحم عجل امامي نيسان | E174: 163
B175: =IF(D175<>"",MAX($B$5:B174)+1,"") -> 170 | D175: ماستر عجل خلفي خردة | E175: 164
B176: =IF(D176<>"",MAX($B$5:B175)+1,"") -> 171 | D176: قاعدة فتيس اتاناير 2769 خردة | E176: 165
B177: =IF(D177<>"",MAX($B$5:B176)+1,"") -> 172 | D177: جلب سوستة خلفي كينج لونج خردة | E177: 166
B178: =IF(D178<>"",MAX($B$5:B177)+1,"") -> 173 | D178: مقص علوي بالبيضة يمين كينج لونج خردة | E178: 167
B179: =IF(D179<>"",MAX($B$5:B178)+1,"") -> 174 | D179: طقم عمرة طلمبة جاز 7294 خرده | E179: 168
B180: =IF(D180<>"",MAX($B$5:B179)+1,"") -> 175 | C180: 43202510 | D180: طقم كاتينه جيتس | E180: 169
B181: =IF(D181<>"",MAX($B$5:B180)+1,"") -> 176 | C181: 43202511 | D181: سيرمجموعه فلوانس كونتينتال | E181: 170
B182: =IF(D182<>"",MAX($B$5:B181)+1,"") -> 177 | C182: 43202512 | D182: اويل سيل ديفريزر ميجان فلوانس | E182: 171
B183: =IF(D183<>"",MAX($B$5:B182)+1,"") -> 178 | C183: 43202513 | D183: بوجيه رينو اصلي 2شمعه | E183: 172
B184: =IF(D184<>"",MAX($B$5:B183)+1,"") -> 179 | C184: 43202514 | D184: فلتر هواء ويكس | E184: 173
B185: =IF(D185<>"",MAX($B$5:B184)+1,"") -> 180 | C185: 43202515 | D185: فلتر زيت اصلي | E185: 174
B186: =IF(D186<>"",MAX($B$5:B185)+1,"") -> 181 | C186: 43202516 | D186: ورده طبه زيت اصلي | E186: 175
B187: =IF(D187<>"",MAX($B$5:B186)+1,"") -> 182 | C187: 43202517 | D187: كلبس كارتيره | E187: 176
B188: =IF(D188<>"",MAX($B$5:B187)+1,"") -> 183 | C188: 43202518 | D188: طقم مساعد خلفي فلوانس مونرو | E188: 177
B189: =IF(D189<>"",MAX($B$5:B188)+1,"") -> 184 | C189: 43202519 | D189: شداد فتيس فلوانس انكس تركي | E189: 178
B190: =IF(D190<>"",MAX($B$5:B189)+1,"") -> 185 | C190: 43202520 | D190: زيت ماتور فولفلين 5/w/40 | E190: 179
B191: =IF(D191<>"",MAX($B$5:B190)+1,"") -> 186 | C191: 43202521 | D191: اسبراي تنظيف بوابة بنزين | E191: 180
B192: =IF(D192<>"",MAX($B$5:B191)+1,"") -> 187 | C192: 43202522 | D192: كوليه كبير | E192: 181
B193: =IF(D193<>"",MAX($B$5:B192)+1,"") -> 188 | C193: 43202523 | D193: طقم بستم دبابه ياباني | E193: 182
B194: =IF(D194<>"",MAX($B$5:B193)+1,"") -> 189 | C194: 43202524 | D194: طقم شميز دبابه ياباني | E194: 183
B195: =IF(D195<>"",MAX($B$5:B194)+1,"") -> 190 | C195: 43202525 | D195: طقم سبيكه ماتور ياباني | E195: 184
B196: =IF(D196<>"",MAX($B$5:B195)+1,"") -> 191 | C196: 43202526 | D196: طقم جلب بيلات ياباني | E196: 185
B197: =IF(D197<>"",MAX($B$5:B196)+1,"") -> 192 | C197: 43202527 | D197: طقم هلال كرنك ياباني | E197: 186
B198: =IF(D198<>"",MAX($B$5:B197)+1,"") -> 193 | D198: طقم جلب كامل ياباني | E198: 187
B199: =IF(D199<>"",MAX($B$5:B198)+1,"") -> 194 | C199: 43202528 | D199: طقم جلب كامه ياباني | E199: 188
B200: =IF(D200<>"",MAX($B$5:B199)+1,"") -> 195 | C200: 43202529 | D200: طقم صباب دبابه | E200: 189
... 5005 more rows

Sheet item_inv
C1: تقرير جرد الاصناف
B5: م | C5: كود الصنف | D5: اسم الصنف | E5: رصيد اول المدة | F5: وارد | G5: منصرف | H5: رصيد اخر المدة
